Cogmind - Beta 11.1 @@@ ROGUE MODE // 2022.05.21 @ 21:01:29 // AFD2019/Pay2Buy Player: Boris Result: Destroyed by G-73 Enforcer with Phase Gun Performance ------------- Evolutions (8) 4000 Regions Visited (32) 6400 Robots Destroyed (807) 4035 Value Destroyed (42096) 42096 Prototype IDs (85) 1700 Alien Tech Used (1) 200 Bonus (38563) 38563 TOTAL SCORE: 96994 Bonus ------- Triggered High Security 2000 Triggered Max Security 3000 High Alert Combat Kills 27675 Follower Combat Kills 2724 Network Hubs Disabled 800 Aligned with FarCom 300 Met Data Miner 300 Met Imprinter 300 Destroyed Z-Imprinter 1000 Triggered Deep Caves Wall 500 Exposed GOLEM Chamber 500 Met Zhirov 300 Met Warlord at Base 500 MAIN.C Attacked Warlord 500 Warlord Defense Kills 1676 A7 Reached Mainframe 300 Met R17 at Cetus 500 Read Decrypted Archives 300 Scanned by Researcher 1000 Friendly Fire -5612 Cogmind --------- Core Integrity 0/1450 Matter 28/300 Energy 5/100 System Corruption 27% Temperature Cool (33) Movement Flying (27) Location -2/Section 7 Parts ------- > --- POWER (3) -------- (None) > --- PROPULSION (6) --- Improved Diametric Drive Cooled Q-thruster > --- UTILITY (10) ----- (None) > --- WEAPON (4) ------- (None) > --- INVENTORY (10) --- Quantum Reactor Light Quantum Reactor Experimental Weapon Cycler Experimental Transmission Jammer Advanced Phase Shifter Graphene Brace Experimental EM Disruption Field Enhanced Nova Cannon Neutron Missile Launcher Enhanced Force Lance Peak State ------------ > --- POWER ------------ Singularity Reactor > --- PROPULSION ------- Biometal Heavy Treads Advanced Heavy Siege Treads Advanced Heavy Siege Treads > --- UTILITY ---------- Coolant Network Advanced Quantum Shading Machine Spectral Analyzer Advanced Signal Interpreter Precision Matter Filter Graphene Brace Advanced Force Field Advanced Component Analysis Suite Long-range Tractor Beam > --- WEAPON ----------- Enhanced Quantum Rifle Enhanced Quantum Rifle Enhanced Nova Cannon Neutron Missile Launcher > --- INVENTORY -------- Light Quantum Reactor Light Quantum Reactor Experimental Biometal Medium Treads Experimental EM Disruption Field Enhanced Nova Cannon Compact Linear Accelerator Neutron Missile Launcher Gravity Flail [Rating: 201] Favorites ----------- Power Cold Fusion Reactor Engine Heavy Ion Engine Reactor Cold Fusion Reactor Propulsion Enhanced Armored Leg Treads Armored Treads Leg Enhanced Armored Leg Hover Unit Gyrokinetic Inverter Flight Unit Improved Diametric Drive Utility Advanced Targeting Computer Device Weapon Cycler Processor Advanced Targeting Computer Hackware Advanced System Shield Protection Improved Medium Armor Plating Weapon Improved KE Penetrator Energy Gun Enhanced Quantum Rifle Energy Cannon Enhanced Nova Cannon Ballistic Gun Improved KE Penetrator Ballistic Cannon Light Antimatter Cannon Launcher Neutron Missile Launcher Special Weapon Mining Laser Impact Weapon Gravity Flail Piercing Weapon Enhanced Force Lance Build | -11 -10 -10 -10 -9 -8 -7 -7 -7 -7 -7 -7 -7 -6 -6 -6 -6 -5 -5 -5 -5 -5 -5 -4 -4 -4 -4 -3 -3 -3 -2 -2 -2 ------- Run | Scr Mat Min Exi Min Mat Fac Was Fac Low Low Zio Dee Pro Fac Low Dat Pro Fac Ext Cet Arc Hub Fac Upp Upp War Pro Res Tes Res Qua Sec Slots Evolved 16 | . . . . . 4 2 . . . . . . . 2 . . . 2 . . . . 2 . . . . 2 . 2 . . Power 2 | . . . . . . . . . . . . . . 1 . . . . . . . . . . . . . . . 1 . . Propulsion 4 | . . . . . 1 . . . . . . . . . . . . 1 . . . . 1 . . . . 1 . . . . Utility 8 | . . . . . 1 2 . . . . . . . 1 . . . 1 . . . . 1 . . . . 1 . 1 . . Weapon 2 | . . . . . 2 . . . . . . . . . . . . . . . . . . . . . . . . . . . Parts Attached 263 | . 9 2 . 2 8 1 1 56 2 6 5 15 5 17 5 3 8 9 4 3 2 4 23 4 5 6 6 8 16 14 7 7 Power 5 | . . . . . 1 . . . . . . . . . . . . . . . . . 1 1 . . . . 1 1 . . Engine 1 | . . . . . 1 . . . . . . . . . . . . . . . . . . . . . . . . . . . Core . | . . . . . . . . . . . . . . . . . . . . . . . . . . . . . . . . . Reactor 4 | . . . . . . . . . . . . . . . . . . . . . . . 1 1 . . . . 1 1 . . Propulsion 16 | . . 1 . . . . . 5 . . . 3 . . . . . . . . . . 1 . . . . 1 3 . 1 1 Treads 14 | . . 1 . . . . . 3 . . . 3 . . . . . . . . . . 1 . . . . 1 3 . 1 1 Leg 1 | . . . . . . . . 1 . . . . . . . . . . . . . . . . . . . . . . . . Wheel . | . . . . . . . . . . . . . . . . . . . . . . . . . . . . . . . . . Hover 1 | . . . . . . . . 1 . . . . . . . . . . . . . . . . . . . . . . . . Flight . | . . . . . . . . . . . . . . . . . . . . . . . . . . . . . . . . . Utility 44 | . 1 . . . . . . 5 2 1 . 6 2 4 2 . 3 1 1 1 . 1 2 2 1 1 1 2 . 3 1 1 Device 40 | . . . . . . . . 4 2 1 . 5 2 3 2 . 3 1 1 1 . 1 2 2 1 1 1 2 . 3 1 1 Storage . | . . . . . . . . . . . . . . . . . . . . . . . . . . . . . . . . . Processor . | . . . . . . . . . . . . . . . . . . . . . . . . . . . . . . . . . Hackware 1 | . . . . . . . . . . . . . . 1 . . . . . . . . . . . . . . . . . . Protection 3 | . 1 . . . . . . 1 . . . 1 . . . . . . . . . . . . . . . . . . . . Artifact . | . . . . . . . . . . . . . . . . . . . . . . . . . . . . . . . . . Weapon 198 | . 8 1 . 2 7 1 1 46 . 5 5 6 3 13 3 3 5 8 3 2 2 3 19 1 4 5 5 5 12 10 5 5 Energy Gun 10 | . 3 . . . . . . 2 . . . . . . . 1 . . . . . . . . . . . . 3 1 . . Energy Cannon 26 | . . . . . 2 1 . 11 . 1 . 1 . . . . . . . . . . 2 . . . 1 1 4 1 1 . Ballistic Gun 39 | . . . . 2 3 . . 19 . 3 4 2 . 1 2 2 . . . . . . . . . 1 . . . . . . Ballistic Cannon 42 | . . . . . . . . 1 . . . . 3 7 . . 2 5 2 1 1 2 7 . 4 . 2 2 2 . 1 . Launcher 52 | . 1 1 . . . . 1 9 . 1 . 2 . 5 . . 2 3 1 1 1 . 8 . . 2 2 1 2 5 1 3 Special Weapon . | . . . . . . . . . . . . . . . . . . . . . . . . . . . . . . . . . Impact Weapon 26 | . 4 . . . 2 . . 4 . . 1 1 . . 1 . 1 . . . . 1 2 1 . 2 . 1 1 3 1 . Slashing Weapon . | . . . . . . . . . . . . . . . . . . . . . . . . . . . . . . . . . Piercing Weapon 3 | . . . . . . . . . . . . . . . . . . . . . . . . . . . . . . . 1 2 Special Melee Weapon . | . . . . . . . . . . . . . . . . . . . . . . . . . . . . . . . . . Unidentified Prototypes 7 | . . . . . . . . 7 . . . . . . . . . . . . . . . . . . . . . . . . Parts Lost 108 | . 5 1 . 4 . . . 15 . 1 . 2 1 5 . . 1 2 6 . . 3 18 3 8 2 1 . 5 3 17 5 Power 10 | . 1 . . 1 . . . 1 . . . . . 1 . . . . 2 . . . 2 . . . . . 1 . 1 . Propulsion 27 | . . 1 . 1 . . . 3 . . . . . 2 . . . . . . . 1 5 1 2 1 . . 1 . 5 4 Utility 45 | . 2 . . . . . . 6 . . . 1 1 2 . . . 1 3 . . 1 7 2 6 . 1 . 2 2 7 1 Weapon 26 | . 2 . . 2 . . . 5 . 1 . 1 . . . . 1 1 1 . . 1 4 . . 1 . . 1 1 4 . Highest Loss Streak 10 | . 2 1 . 3 . . . 7 . 1 . 1 1 1 . . 1 1 2 . . 1 9 3 6 2 1 . 2 1 10 2 To Critical Strikes 4 | . . . . . . . . . . . . 1 . . . . . . . . . . . . . . . . . . . 3 Average Slot Usage (%) 80 | . 74 70 71 67 89 78 100 91 99 99 97 95 93 84 98 82 98 93 94 98 99 98 90 68 47 12 46 69 72 68 54 26 Engine 1 | . 9 14 14 . 9 7 7 1 . . . . . . . . . . . . . . . . . . . . . . . . Reactor 6 | . . . . . . . . 5 7 7 7 7 7 12 13 13 13 11 10 11 11 11 9 5 2 1 5 9 9 4 2 . Treads 9 | . . 7 14 14 18 15 23 10 . . 16 22 23 12 . . . . . . . . 2 5 9 3 6 12 13 13 9 7 Leg 8 | . 22 20 14 9 . . . 2 23 23 6 . . 6 20 20 20 23 23 23 23 23 19 . 2 1 5 1 . . 3 3 Device 14 | . . . . . 8 7 15 17 14 13 7 7 18 20 20 20 18 14 22 21 22 22 16 21 10 2 14 22 24 23 19 7 Processor 8 | . . . . . 9 7 7 12 15 15 15 13 15 9 13 13 13 18 11 11 11 6 5 9 5 . . 3 4 7 6 4 Hackware 3 | . . . . . . 1 15 5 . 1 7 4 . 4 . . . 3 4 5 5 9 11 5 2 . . . . 2 . . Protection 2 | . 12 . . 13 9 7 . . 7 7 7 6 3 . 6 6 6 . . . . . 3 . . . . . . . . . Energy Gun 1 | . 2 . . . . . . . . . . . . . 6 1 6 1 . . . . . . . . . . 6 12 1 . Ballistic Gun 9 | . . . . 26 33 23 23 25 30 29 27 26 13 . 11 1 13 2 . . . . . . . . . . . . . . Ballistic Cannon 5 | . . . . . . . . . . . . . 7 13 . . 2 12 18 22 23 21 14 . 1 . 9 12 4 . . . Launcher 2 | . 9 13 14 . . . 7 1 . . . . . 3 . . . . . . . . 1 . . 2 3 . 1 1 2 . Impact Weapon 3 | . 14 14 14 . 1 1 . . . . . 2 3 . 5 6 3 . . . . . 2 21 11 2 . 3 4 2 1 . Naked Turns . | . . . . . . . . . . . . . . . . . . . . . . . . . . . . . . . . . Heaviest Build 122 | 11 20 12 12 15 34 34 29 46 47 48 44 48 49 70 63 63 68 72 81 80 70 80 84 54 37 31 79 88 100 122 116 29 Greatest Support 260 | 13 26 26 13 20 40 70 70 75 63 63 78 78 78 78 60 60 60 78 88 88 88 95 103 160 160 80 150 230 240 260 260 115 Greatest Overweight (x) 10 | . . . . 1 . . . 2 . . . 10 . 1 1 1 1 . . . . . . . . 3 4 . . . . 3 Average Overweight (x) . | . . . . . . . . . . . . . . . . . . . . . . . . . . . . . . . . . Largest Inventory Capacity 10 | 10 10 10 10 10 10 10 10 10 10 10 10 10 10 10 10 10 10 10 10 10 10 10 10 10 10 10 10 10 10 10 10 10 Average Capacity 10 | 10 10 10 10 10 10 10 10 10 10 10 10 10 10 10 10 10 10 10 10 10 10 10 10 10 10 10 10 10 10 10 10 10 Most Carried 10 | . 3 10 10 10 7 8 10 10 10 10 10 10 10 10 10 10 10 10 10 9 9 10 10 9 10 10 10 10 10 10 10 10 Average Carried 8 | . 2 9 10 8 7 7 9 9 9 9 10 9 8 9 9 10 9 9 9 8 9 9 9 8 9 9 6 8 8 8 7 6 Final Capacity 10 | 10 10 10 10 10 10 10 10 10 10 10 10 10 10 10 10 10 10 10 10 10 10 10 10 10 10 10 10 10 10 10 10 10 Final Carried 10 | . 7 10 10 8 7 8 10 10 9 10 10 7 10 9 10 10 9 10 8 9 9 10 10 9 9 10 9 10 10 8 8 10 Class Distribution -------------------- 35% | Mutant 27% | Gunner 11% | Skirmisher 7% | Hacker-Skirmisher 4% | Commander-Gunner 3% | Hacker-Mutant Dominant Class ---------------- Mutant | -10/Materials Mutant | -10/Mines Mutant | -10/Exiles Mutant | -9/Mines Skirmisher | -8/Materials Mutant | -7/Factory Hacker-Skirmisher | -7/Waste Gunner | -7/Factory Gunner | -7/Lower Caves Gunner | -7/Lower Caves Gunner | -7/Zion Gunner | -7/Deep Caves Skirmisher | -6/Proximity Caves Gunner | -6/Factory Gunner | -6/Lower Caves Mutant | -6/Data Miner Skirmisher | -5/Proximity Caves Gunner | -5/Factory Commander-Gunner | -5/Extension Commander-Gunner | -5/Cetus Commander-Gunner | -5/Archives Hacker-Skirmisher | -5/Hub_04(d) Hacker-Mutant | -4/Factory Assassin | -4/Upper Caves Mutant | -4/Upper Caves Mutant | -4/Warlord Mutant | -3/Proximity Caves Mutant | -3/Research Mutant | -3/Testing Generator-Skirmisher | -2/Research Generator-Mutant | -2/Quarantine Mutant | -2/Section 7 Resources | -11 -10 -10 -10 -9 -8 -7 -7 -7 -7 -7 -7 -7 -6 -6 -6 -6 -5 -5 -5 -5 -5 -5 -4 -4 -4 -4 -3 -3 -3 -2 -2 -2 ----------- Run | Scr Mat Min Exi Min Mat Fac Was Fac Low Low Zio Dee Pro Fac Low Dat Pro Fac Ext Cet Arc Hub Fac Upp Upp War Pro Res Tes Res Qua Sec Matter Collected 14658 | 72 408 153 . 288 872 . 352 1514 151 251 . 634 249 1112 353 . 245 942 1094 306 . 558 899 300 82 508 311 600 942 765 567 130 Remotely 1004 | . . . . . . . . . . . . . . . . . . . . . . . . . . . . . . 579 425 . Salvage Created 32964 | 72 591 374 . 318 1311 . 1328 3753 193 694 . 1237 217 1740 327 . 214 1009 1546 212 142 784 2007 531 93 612 539 787 6281 2688 2714 650 Parts . | . . . . . . . . . . . . . . . . . . . . . . . . . . . . . . . . . Haulers Intercepted 12 | . 2 . . . . . . 4 . . . . . 2 . . . . . . . . 2 . . . . . . 2 . . Recyclers Shooed 1 | . . . . . . . . . . . . . . . . . . . . . . . 1 . . . . . . . . . Parts Field Recycled . | . . . . . . . . . . . . . . . . . . . . . . . . . . . . . . . . . Retrieved Matter . | . . . . . . . . . . . . . . . . . . . . . . . . . . . . . . . . . Parts Self-Destructed . | . . . . . . . . . . . . . . . . . . . . . . . . . . . . . . . . . Prevented . | . . . . . . . . . . . . . . . . . . . . . . . . . . . . . . . . . Kills | -11 -10 -10 -10 -9 -8 -7 -7 -7 -7 -7 -7 -7 -6 -6 -6 -6 -5 -5 -5 -5 -5 -5 -4 -4 -4 -4 -3 -3 -3 -2 -2 -2 ------- Run | Scr Mat Min Exi Min Mat Fac Was Fac Low Low Zio Dee Pro Fac Low Dat Pro Fac Ext Cet Arc Hub Fac Upp Upp War Pro Res Tes Res Qua Sec Combat Hostiles Destroyed 701 | . 12 22 . 8 18 . 6 63 3 16 . 56 6 47 4 . 5 22 34 4 3 13 49 7 1 12 18 13 141 55 50 13 Melee 17 | . 4 . . . . . . . . . . . . . 1 . . . . . . 4 1 2 . . . . 1 . 2 2 Guns 102 | . . . . 7 18 . 1 27 3 12 . 15 1 . 3 . 1 1 . . . . . . . . . . 2 11 . . Cannons 106 | . . . . . . . . 4 . . . . 5 18 . . . 14 29 2 1 8 7 . . . 1 8 8 . 1 . AOE 454 | . 5 22 . 1 . . 5 32 . 4 . 38 . 29 . . 3 7 5 2 2 . 40 . . 12 16 3 128 42 47 11 Classes Destroyed 32 | 1 9 1 . 2 2 . 1 4 . . . 3 2 1 1 . . . . . . . . . . . . . 5 . . . Worker 59 | . 1 8 . 2 8 . . 11 . . . . . 9 . . . 4 1 . . 7 6 . . . . . . 1 . 1 Builder 28 | . 2 2 . . 3 . . 6 . . . . . 6 . . . 1 1 . . 4 2 . . . . . . 1 . . Tunneler 11 | . 1 2 . . 1 . . 1 . . . . . 1 . . . 1 1 . . 1 2 . . . . . . . . . Hauler 12 | . 2 . . . . . . 4 . . . . . 2 . . . . . . . . 2 . . . . . . 2 . . Recycler 21 | 1 1 1 . . . . . 8 . . . . . 3 . . . 2 1 . . 1 2 . . . . 1 . . . . Carrier 2 | . . . . . . . . . . . . . . . . . . . . . . . . . . . . . 2 . . . Minesweeper 2 | . . . . . . . . . . . . . 1 . . . . . . . . . . . 1 . . . . . . . Mechanic 26 | . 1 . . . 1 . . 3 . . . . . 2 . . . 1 . . . . 1 . . 1 . . 10 3 3 . Operator 9 | . 2 . . . 1 . . 2 . . . . . . . . . 1 . . . 1 1 . . . . . . . 1 . Watcher 16 | . 3 . . . 1 . . 1 . . . . . 1 . . . 2 . 2 . 1 2 . . . . 1 1 1 . . Swarmer 56 | . 3 3 . . . . . 5 . 7 . . 2 7 1 . . 6 . . . . 13 . . . 6 3 . . . . Saboteur 15 | . . . . . . . . . . . . . . 2 . . . . 1 . . . 2 . . . . . 6 1 2 1 Grunt 297 | . 9 2 . 5 9 . . 27 2 8 . . 2 22 1 . 3 6 16 1 3 8 25 6 1 9 10 . 59 29 29 5 Brawler 37 | . . . . 1 . . . 3 1 . . . . 2 . . . 2 2 1 . . 2 . . 1 . . 12 2 8 . Duelist 37 | . . . . 2 . . . 4 . . . . . 4 . . . . . . . . 2 . . . 1 . 15 4 4 1 Protector 26 | . . . . . . . . 5 . . . . . . . . . . 1 . . . 1 . . . . . 14 3 2 . Researcher 3 | . . . . . . . . . . . . . . . . . . . . . . . . . . . . . 1 . 1 1 Sentry 46 | . . . . . 7 . . 4 . 1 . . 1 2 1 . 1 4 3 . . 2 . 1 . . 1 3 4 11 . . Specialist 6 | . . . . . . . . 2 . . . . . . . . . . 3 . . . . . . 1 . . . . . . Hunter 34 | . . . . . 2 . . 7 . . . . . 4 . . 1 1 . . . . 2 . . . . . 11 1 3 2 Programmer 48 | . . . . . . . . 5 . . . . . 4 . . . 1 1 . . 2 2 . . 1 . 7 16 4 1 4 Heavy 3 | . . . . . . . . 1 . . . . . . . . . 2 . . . . . . . . . . . . . . Behemoth 5 | . . . . . . . . . . . . . 1 . 1 . . . 2 . . 1 . . . . . . . . . . Compactor 6 | . . . . . . . 6 . . . . . . . . . . . . . . . . . . . . . . . . . Cetus Guard 2 | . . . . . . . . . . . . . . . . . . . . 2 . . . . . . . . . . . . Investigator 4 | . . . . . . . . . . . . . . . . . . . . . . . . . . . . . 3 . 1 . Striker 1 | . . . . . . . . . . . . . . . . . . . . . . . . . . . . . 1 . . . Executioner 2 | . . . . . . . . . . . . . . . . . . . . . . . . . . . . . 2 . . . Alpha 7 2 | . . . . . . . . . . . . . . . . . . . . . . . . . . . . . 1 . 1 . Z-Light 7 | . . . . . . . . . . . . 7 . . . . . . . . . . . . . . . . . . . . Samaritan 2 | . . . . . . . . . . . . . . . 2 . . . . . . . . . . . . . . . . . Assembler 2 | . . . . . . . . . . . . 2 . . . . . . . . . . . . . . . . . . . . Assembled 62 | . . 17 . . . . . . . . . 45 . . . . . . . . . . . . . . . . . . . . Golem 3 | . . . . . . . . . . . . 3 . . . . . . . . . . . . . . . . . . . . Wasp 3 | . . . . . . . . 3 . . . . . . . . . . . . . . . . . . . . . . . . Thug 9 | . . . . . . . . 4 . . . . . . . . . . 4 . . . . . . . . . . . 1 . Savage 4 | . . . . . . . . 1 . . . . . . . . . . 1 . 1 . . . . . . . . . 1 . Butcher 3 | . . . . . . . . . . . . . . . . . . . 1 . . . . . . . . . . . 2 . Best Kill Streak 45 | 1 5 18 . 4 10 . 4 18 3 7 . 40 4 11 3 . 3 8 8 2 3 7 19 3 1 6 5 3 45 13 32 9 Combat Bots Only 43 | . 3 17 . 3 3 . 4 10 3 7 . 38 4 7 3 . 3 5 6 2 3 6 10 3 1 6 5 3 43 10 28 9 Max Kills in Single Turn 32 | 1 1 4 . 2 2 . 1 6 1 2 . 32 1 5 1 . 3 5 4 2 3 7 7 1 1 5 3 3 10 3 6 3 Gunslinging 1 | . . . . . 1 . . 1 . 1 . . . . . . . . . . . . . . . . . . . . . . Exploded 32 | . 1 4 . 1 . . 1 5 . 2 . 32 . 4 . . 3 5 4 2 2 . 5 . . 4 3 3 10 3 6 3 Melee 1 | . 1 . . . . . . . . . . . . . 1 . . . . . . 1 1 1 . . . . 1 . 1 1 Uniques/NPCs Destroyed 1 | . . . . . . . . . . . . 1 . . . . . . . . . . . . . . . . . . . . Z-Imprinter (-7/Deep Caves) Combat | -11 -10 -10 -10 -9 -8 -7 -7 -7 -7 -7 -7 -7 -6 -6 -6 -6 -5 -5 -5 -5 -5 -5 -4 -4 -4 -4 -3 -3 -3 -2 -2 -2 -------- Run | Scr Mat Min Exi Min Mat Fac Was Fac Low Low Zio Dee Pro Fac Low Dat Pro Fac Ext Cet Arc Hub Fac Upp Upp War Pro Res Tes Res Qua Sec Damage Taken 32894 | . 675 260 . 297 410 60 183 2697 43 481 . 913 405 1496 662 . 309 839 928 130 37 770 3659 580 1870 596 572 487 2852 2099 6268 2316 Core 4004 | . 39 59 . 76 43 . 9 223 . 55 . 244 61 264 11 . 17 94 70 7 19 75 449 70 204 151 74 37 203 105 751 594 Absorbed by Shields 9164 | . . . . . . . . . . . . . . 549 . . . 429 834 137 . 589 729 88 . . 57 287 1923 1232 2310 . Reduced by Siege Mode 1540 | . . . . . . . . 51 . . . . . . . . . . . . . . . . 41 . . 32 366 344 672 34 Core Remaining (%) 59 | 100 . . . 30 92 . . . . . . . 15 . . . 65 . . . . 73 . . . . 17 . 81 . . . Volleys Fired 1125 | . 69 23 . 27 80 3 24 143 8 25 . 39 12 95 11 . 7 70 62 12 3 35 70 . 3 35 19 31 74 80 49 16 Largest 4 | . 1 1 . 2 4 1 4 4 4 4 . 4 4 3 3 . 3 4 4 4 4 4 4 . 4 1 2 3 3 4 3 2 Hottest 250 | . 45 30 . 51 142 69 118 176 132 132 . 132 146 143 140 . 108 180 241 241 241 241 241 . 240 49 120 180 240 250 175 169 Shots Fired 2346 | . 69 23 . 43 212 3 70 399 34 77 . 117 34 150 21 . 16 140 191 45 9 116 123 . 12 35 23 61 104 154 51 14 Gun 1065 | . 48 . . 39 198 . 54 323 34 70 . 107 10 . 21 . 12 8 . . . . . . . 23 . . 14 98 6 . Cannon 974 | . . . . . 14 3 . 58 . 4 . 6 24 131 . . 2 128 189 44 8 116 99 . 12 . 9 60 43 4 19 1 Launcher 307 | . 21 23 . 4 . . 16 18 . 3 . 4 . 19 . . 2 4 2 1 1 . 24 . . 12 14 1 47 52 26 13 Special . | . . . . . . . . . . . . . . . . . . . . . . . . . . . . . . . . . Kinetic 1750 | . . . . 39 198 . 54 349 34 70 . 107 34 131 10 . 12 132 189 44 8 116 90 . 12 23 8 50 34 . 6 . Thermal 200 | . . . . . . . . 31 . . . . . . 11 . 2 4 . . . . 7 . . . . . 23 102 19 1 Explosive 307 | . 21 23 . 4 . . 16 18 . 3 . 4 . 19 . . 2 4 2 1 1 . 24 . . 12 14 1 47 52 26 13 Electromagnetic 89 | . 48 . . . 14 3 . 1 . 4 . 6 . . . . . . . . . . 2 . . . 1 10 . . . . Robot Hit Streak 35 | . 2 7 . 8 14 . 22 24 9 8 . 5 13 18 10 . 13 11 10 9 3 7 10 . 9 4 9 13 21 16 35 1 Robot Miss Streak 15 | . 1 2 . 1 2 . 2 4 2 4 . 5 2 5 1 . 1 4 4 6 2 5 15 . 1 2 2 3 1 4 1 . Penetration Max 1 | . . . . 1 1 . . 1 1 1 . 1 . . . . . . . . . . . . . . . . . . 1 . Secondary Targets 19 | . . . . 1 2 . . 11 . 1 . 2 . . . . . . . . . . . . . . . . 2 . . . Max Gunslinging Chain 1 | . . . . 1 1 . . 1 . 1 . 1 . . . . . . . . . . . . . . . . 1 . . . Capacitor 18 | . . . . . . . . . . . . . . . . . . . . . . . . . . . . . . . 18 . Shots Hit Robots 1384 | 2 44 18 . 22 109 . 55 225 6 36 . 58 21 81 21 . 15 69 112 24 5 56 56 21 17 17 14 36 83 105 53 3 Core Hits 1943 | 1 21 58 . 17 50 . 24 262 4 25 . 114 10 200 6 . 9 67 89 18 10 51 204 4 1 20 27 17 316 141 142 35 Critical Kills 16 | . . . . . 1 . . 2 2 1 . 5 . . 1 . 1 . . . . 2 1 . . . . . . . . . Critical Parts Destroyed 31 | . 6 . . 1 1 . . 2 . 2 . 1 . . . . . . . . . 2 7 5 1 . . . 2 . 1 . Critical Strikes 79 | . 6 . . 1 3 . . 6 2 3 . 7 1 3 4 . 2 3 7 1 1 5 10 6 1 . . . 2 . 4 1 Burn 1 | . . . . . . . . . . . . . . . 1 . . . . . . . . . . . . . . . . . Destroy 24 | . . . . 1 2 . . 5 2 3 . 6 . . 2 . 2 . . . . . . . . . . . . . 1 . Blast 20 | . . . . . . . . 1 . . . . 1 3 . . . 3 7 1 1 1 2 . . . . . . . . . Smash 30 | . 6 . . . 1 . . . . . . 1 . . 1 . . . . . . 4 8 6 1 . . . 2 . . . Impale 4 | . . . . . . . . . . . . . . . . . . . . . . . . . . . . . . . 3 1 Melee Attacks 283 | 3 64 12 . . 12 1 . 4 . . 3 8 1 . 7 . 3 . . . . 14 22 30 13 12 . 6 33 7 18 10 Impact 262 | 3 64 12 . . 12 1 . 4 . . 3 8 1 . 7 . 3 . . . . 14 22 30 13 12 . 6 33 7 7 . Slashing . | . . . . . . . . . . . . . . . . . . . . . . . . . . . . . . . . . Piercing 21 | . . . . . . . . . . . . . . . . . . . . . . . . . . . . . . . 11 10 Sneak Attacks 31 | 1 9 7 . . 3 . . . . . . . 1 . 2 . 1 . . . . . 3 . 1 . . 1 2 . . . Combat Hostiles 2 | . . . . . . . . . . . . . . . . . 1 . . . . . . . . . . . 1 . . . Follow-up Attacks 13 | . 2 . . . . . . . . . . . . . . . . . . . . . . 6 5 . . . . . . . Damage Inflicted 153670 | 139 2408 1820 . 748 2184 . 4375 12289 193 1603 . 4238 910 8873 911 . 1103 4182 5932 1186 759 4368 11840 1181 803 2811 3710 2118 38093 14954 16663 3276 Guns 13483 | . 59 . . 426 1780 . 633 4140 193 1196 . 1402 248 . 630 . 207 94 . . . . . . . 171 . . 251 1978 75 . Cannons 21314 | . . . . . 24 . . 884 . . . 105 574 3648 . . 79 2870 5218 912 193 1842 994 . 443 . 303 1426 1071 80 648 . Explosions 110025 | . 532 1425 . 322 18 . 3742 7211 . 407 . 2412 . 5207 . . 541 1198 671 274 566 1875 10010 . . 2640 3407 370 35882 12764 15379 3172 Melee 8602 | 139 1817 395 . . 362 . . . . . . 319 88 . 281 . 276 . . . . 644 831 1181 355 . . 289 882 78 561 104 Ramming 246 | . . . . . . . . 54 . . . . . 18 . . . 20 43 . . 7 5 . 5 . . 33 7 54 . . Kinetic 30374 | . . . . 426 1780 . 633 4725 193 1196 . 1402 822 3648 279 . 286 2914 5218 912 193 1842 951 . 443 171 269 1099 889 . 83 . Thermal 7029 | . . . . . 18 . . 1577 . . . 49 . 153 351 . . 50 . . . . 1450 . . . . . 433 2058 890 . Explosive 104690 | . 532 1425 . 322 . . 3742 5933 . 407 . 2363 . 4935 . . 541 1177 671 274 566 . 8603 . . 2640 3407 370 35761 12764 15085 3172 Electromagnetic 2729 | . 59 . . . 24 . . . . . . 105 . 119 . . . 21 . . . 1875 . . . . 34 327 121 . 44 . Impact 7937 | 139 1817 395 . . 362 . . . . . . 319 88 . 281 . 276 . . . . 644 831 1181 355 . . 289 882 78 . . Slashing . | . . . . . . . . . . . . . . . . . . . . . . . . . . . . . . . . . Piercing 665 | . . . . . . . . . . . . . . . . . . . . . . . . . . . . . . . 561 104 Highest Corruption 29 | . . . . . . . . 4 4 4 4 1 1 5 5 5 5 3 11 11 9 14 9 9 27 29 . 1 8 . 19 27 Average Corruption 5 | . . . . . . . . 2 4 4 4 1 1 4 5 5 5 2 5 10 7 5 4 9 17 27 . 1 6 . 7 22 Corruption Purged 7 | . . . . . . . . . . . . . . . . . . . . 2 5 . . . . . . . . . . . Corruption Blocked 41 | . . . . . . . . . . . . . . . . . . . . . . . . . . . . . 15 26 . . Effects 317 | . . . . . . . . 24 7 14 1 10 8 24 11 4 8 5 39 16 3 19 6 15 14 1 . 4 49 . 13 22 Message Errors 63 | . . . . . . . . 5 . 1 . 2 . 6 5 . 1 . 8 4 1 5 2 3 6 . . 1 7 . . 6 Matter Fused 74 | . . . . . . . . 7 3 3 1 1 2 7 3 1 1 2 7 3 . 4 1 5 4 . . . 14 . 1 4 Heat Flow Errors 42 | . . . . . . . . 1 . 3 . 4 3 2 1 1 3 1 6 1 1 2 1 1 2 . . . 6 . 1 2 Energy Discharges 38 | . . . . . . . . 2 2 2 . . 1 4 . . 1 1 6 2 . 1 1 . . . . 2 7 . 4 2 Data Loss (minor) 38 | . . . . . . . . 2 . 1 . 2 1 4 2 . 1 1 4 3 1 3 1 4 1 . . . 5 . 1 1 Data Loss (major) 13 | . . . . . . . . . . . . 1 1 . . 2 . . 2 1 . 1 . 1 . 1 . 1 2 . . . Misfires 14 | . . . . . . . . 1 2 1 . . . . . . . . 3 1 . 1 . . . . . . 5 . . . Alerts 10 | . . . . . . . . 3 . . . . . 1 . . 1 . . . . 2 . 1 . . . . 1 . 1 . Misdirections 10 | . . . . . . . . . . . . . . . . . . . . . . . . . 1 . . . . . 5 4 Weapon Failures 15 | . . . . . . . . 3 . 3 . . . . . . . . 3 1 . . . . . . . . 2 . . 3 Overload Shots 12 | . . . . . . . . . . . . . . . 9 . . 3 . . . . . . . . . . . . . . Overflow Damage 8728 | . 817 192 . 2 91 . . 255 . 63 . 182 48 119 192 . 86 97 73 46 . 302 1215 597 119 90 304 271 2133 683 681 70 Projectiles 647 | . . . . . . . . 45 . . . . . 95 . . . 97 73 46 . 42 32 . . . 8 36 121 6 46 . Explosions 4261 | . 25 42 . 2 . . . 210 . 63 . 34 . 24 . . 18 . . . . 65 518 . . 90 296 . 1555 665 584 70 Melee 3820 | . 792 150 . . 91 . . . . . . 148 48 . 192 . 68 . . . . 195 665 597 119 . . 235 457 12 51 . Knockbacks 153 | . 10 1 . . . . . 5 . . . 1 1 15 . . 2 12 35 3 1 11 17 10 1 . 2 9 16 . 1 . Impact 35 | . 10 1 . . . . . . . . . 1 . . . . 2 . . . . 3 6 7 1 . . 1 3 . . . Kinetic 109 | . . . . . . . . 5 . . . . 1 14 . . . 11 32 3 1 7 11 . . . 2 8 13 . 1 . Secondary 9 | . . . . . . . . . . . . . . 1 . . . 1 3 . . 1 . 3 . . . . . . . . Self-Inflicted Damage 4775 | . 194 126 . . 26 60 190 429 . . . 21 . 348 . . . 78 . 15 . 181 345 . 2 . 188 170 762 793 758 89 Shots 95 | . 2 9 . . 1 1 9 18 . . . 2 . 11 . . . 2 . 1 . 2 7 . . . 2 2 8 8 9 1 Rammed 13 | . . . . . . . . 8 . . . . . . . . . . . . . . 1 . 1 . . 1 1 1 . . Targets Rammed 27 | . . . . . . . . 8 1 . . . . 4 . . . 2 3 . 2 1 1 . 1 . . 1 1 2 . . Kicked 12 | . . . . . . . . . 1 . . . . 3 . . . 2 3 . 2 1 . . . . . . . . . . Crushed 2 | . . . . . . . . . . . . . . 1 . . . . . . . . . . . . . . . 1 . . Highest Temperature 532 | . 216 32 . 26 296 . . 282 169 256 . 376 188 208 181 120 192 402 269 280 126 268 337 102 532 349 42 415 254 . 294 144 Average Temperature 92 | . 71 16 . 9 49 . . 94 61 111 . 118 76 62 71 62 55 105 97 109 63 78 94 45 221 160 14 146 98 . 121 57 Received Heat Transfer 4855 | . 195 46 . 60 171 . . 474 27 270 . 162 66 219 135 . 48 41 251 4 18 122 633 120 234 84 80 8 395 245 639 108 Effects 17 | . . . . . . . . 4 . 3 . 1 . . . . . 2 . . . . 1 . 1 1 . 4 . . . . Shutdowns 4 | . . . . . . . . . . . . . . . . . . 1 . . . . . . . . . 3 . . . . Energy Bleed 3 | . . . . . . . . 1 . . . . . . . . . . . . . . 1 . . 1 . . . . . . Interference 7 | . . . . . . . . 3 . 3 . . . . . . . 1 . . . . . . . . . . . . . . Short Circuit 1 | . . . . . . . . . . . . 1 . . . . . . . . . . . . . . . . . . . . Damage (minor) 2 | . . . . . . . . . . . . . . . . . . . . . . . . . 1 . . 1 . . . . Siege Activations 21 | . . . . . . . . 4 . . . . . . . . . . . . . . . . 1 . 1 3 6 3 2 1 Total Turns 410 | . . . . . . . . 42 . . . . . . . . . . . . . . . . 6 . 51 44 130 63 61 13 Longest Duration 62 | . . . . . . . . 21 . . . . . . . . . . . . . . . . 6 . 51 19 62 25 47 13 Robots Corrupted 3 | . . . . . . . . . . . . 1 . . . . . . . . . . . . . . . 2 . . . . Combat Hostiles 3 | . . . . . . . . . . . . 1 . . . . . . . . . . . . . . . 2 . . . . Parts Fried . | . . . . . . . . . . . . . . . . . . . . . . . . . . . . . . . . . Impact Corruptions 125 | . 31 5 . . 3 . . . . . . 4 1 . 16 . 3 1 . . . 4 20 15 4 . . 7 9 2 . . Robots Melted 2 | . . . . . . . . . . . . . . . . . . . . . . . . . . . . . 1 1 . . Combat Hostiles 2 | . . . . . . . . . . . . . . . . . . . . . . . . . . . . . 1 1 . . Parts Melted . | . . . . . . . . . . . . . . . . . . . . . . . . . . . . . . . . . Heat Transferred 6891 | . . . . . 50 . . 1350 . . . 50 . 100 740 . . 80 . . . . 987 . . . . . 406 2368 760 . Parts Sabotaged 7 | . . . . . . . . . . . . . . 2 . . . . . . . . 2 . . . . . . . 3 . Parts Stolen . | . . . . . . . . . . . . . . . . . . . . . . . . . . . . . . . . . Parts Stripped . | . . . . . . . . . . . . . . . . . . . . . . . . . . . . . . . . . Power Chain Reactions 2 | . . . . . . . . . . . . 1 . . . . . . . . . . . . . . . . . . 1 . Missiles Intercepted . | . . . . . . . . . . . . . . . . . . . . . . . . . . . . . . . . . Alert | -11 -10 -10 -10 -9 -8 -7 -7 -7 -7 -7 -7 -7 -6 -6 -6 -6 -5 -5 -5 -5 -5 -5 -4 -4 -4 -4 -3 -3 -3 -2 -2 -2 ------- Run | Scr Mat Min Exi Min Mat Fac Was Fac Low Low Zio Dee Pro Fac Low Dat Pro Fac Ext Cet Arc Hub Fac Upp Upp War Pro Res Tes Res Qua Sec Peak Influence 6362 | 5 766 605 . 277 1111 553 241 2709 . . . . . 2148 . . . 1493 1766 1599 974 1750 3407 . . . . 659 6355 6362 5155 3511 Initial 3578 | . 3 268 . . 107 471 193 28 . . . . . 63 . . . 126 731 989 639 340 857 . . . . 171 285 3574 3578 2899 Average 1816 | 1 425 436 . 155 680 523 181 1444 . . . . . 1245 . . . 952 1114 1432 750 478 1932 . . . . 448 5256 4603 4434 3219 Maximum Alert Level 5 | . 3 2 . 1 4 2 1 5 . . . . . 5 . . . 4 5 4 3 5 5 . . . . 2 5 5 5 5 Low Security (%) 5 | 100 9 . . 76 6 . 29 4 . . . . . 5 . . . 4 . . . 12 . . . . . 8 . . . . Level 1 13 | . 34 57 . 23 16 . 70 6 . . . . . 2 . . . 6 . . . 40 . . . . . 24 . . . . Level 2 15 | . 52 42 . . 31 100 . 3 . . . . . 16 . . . 6 . . 58 30 . . . . . 66 . . . . Level 3 16 | . 3 . . . 42 . . 10 . . . . . 21 . . . 44 68 6 41 13 12 . . . . . . . . . Level 4 14 | . . . . . 3 . . 42 . . . . . 16 . . . 38 20 93 . . 22 . . . . . . . . . Level 5 11 | . . . . . . . . 25 . . . . . 32 . . . . 11 . . 2 34 . . . . . . 38 . . High Security 6 | . . . . . . . . 7 . . . . . 6 . . . . . . . . 30 . . . . . . 61 . . Max Security 16 | . . . . . . . . . . . . . . . . . . . . . . . . . . . . . 99 . 99 99 Sterilizations 1 | . . . . . . . . . . . . . . . . . . . . . . . . . . . . . 1 . . . Squads Dispatched 138 | . 2 . . . 5 . . 22 . 1 . . . 12 . . . 5 3 . . 6 15 . 1 . . 3 32 2 16 13 Investigation 13 | . 1 . . . 3 . . 1 . 1 . . . 2 . . . . 1 . . 2 1 . . . . . . 1 . . Extermination 5 | . . . . . . . . 2 . . . . . 1 . . . . . . . . . . . . . 2 . . . . Reinforcement 21 | . 1 . . . 1 . . 6 . . . . . 3 . . . 1 . . . 3 2 . . . . . 1 1 1 1 Assault 95 | . . . . . 1 . . 12 . . . . . 6 . . . 4 2 . . 1 12 . 1 . . 1 31 . 12 12 Garrison 4 | . . . . . . . . 1 . . . . . . . . . . . . . . . . . . . . . . 3 . Intercept . | . . . . . . . . . . . . . . . . . . . . . . . . . . . . . . . . . Searches Triggered . | . . . . . . . . . . . . . . . . . . . . . . . . . . . . . . . . . Data Miner Redirects 9 | . . . . . . . . . . . . . . . . . . 3 2 . . 2 2 . . . . . . . . . Construction Impeded 6 | . . . . . . . . 2 . . . . . 2 . . . . . . . 1 1 . . . . . . . . . Haulers Reinforced 3 | . . . . . . . . 1 . . . . . . . . . . . . . . 1 . . . . . . 1 . . Active Scanning Responses . | . . . . . . . . . . . . . . . . . . . . . . . . . . . . . . . . . Cargo Convoy Interrupts 1 | . . . . . . . . 1 . . . . . . . . . . . . . . . . . . . . . . . . Stealth | -11 -10 -10 -10 -9 -8 -7 -7 -7 -7 -7 -7 -7 -6 -6 -6 -6 -5 -5 -5 -5 -5 -5 -4 -4 -4 -4 -3 -3 -3 -2 -2 -2 --------- Run | Scr Mat Min Exi Min Mat Fac Was Fac Low Low Zio Dee Pro Fac Low Dat Pro Fac Ext Cet Arc Hub Fac Upp Upp War Pro Res Tes Res Qua Sec Distress Signals 20 | . 1 . . . . . . 1 . . . . . . . . . 1 3 2 . 3 2 . . . . . . 6 . 1 Communications Jammed 78 | . . . . . . . . . . . . . . . . . . . . . . . 45 . . . . . . . 30 3 Distress Signals 77 | . . . . . . . . . . . . . . . . . . . . . . . 44 . . . . . . . 30 3 Times Spotted 1060 | . 19 22 . 8 24 . 6 93 3 15 . 60 6 65 4 . 7 22 48 17 10 22 82 9 9 30 19 17 207 76 100 60 Peak Tracking Total 40 | . 5 9 . 3 4 . 2 10 3 4 . 37 4 10 4 . 4 4 8 5 8 9 20 3 10 6 5 4 40 13 24 30 Tactical Retreats 27 | . 1 . . . 1 . . 1 . . . . . . 1 . . . 1 . . 3 3 2 3 . 3 . . 4 2 2 Traps | -11 -10 -10 -10 -9 -8 -7 -7 -7 -7 -7 -7 -7 -6 -6 -6 -6 -5 -5 -5 -5 -5 -5 -4 -4 -4 -4 -3 -3 -3 -2 -2 -2 ------- Run | Scr Mat Min Exi Min Mat Fac Was Fac Low Low Zio Dee Pro Fac Low Dat Pro Fac Ext Cet Arc Hub Fac Upp Upp War Pro Res Tes Res Qua Sec Traps Triggered 21 | . 2 . . . 2 1 . 5 . . . . . 1 . . . 2 . . . 2 . . . 2 . 1 2 . . 1 Indirectly 3 | . . . . . 1 . . . . . . . . . . . . . . . . 2 . . . . . . . . . . Trap Hack Attempts . | . . . . . . . . . . . . . . . . . . . . . . . . . . . . . . . . . Triggered . | . . . . . . . . . . . . . . . . . . . . . . . . . . . . . . . . . Disarmed . | . . . . . . . . . . . . . . . . . . . . . . . . . . . . . . . . . Reprogrammed . | . . . . . . . . . . . . . . . . . . . . . . . . . . . . . . . . . Reused . | . . . . . . . . . . . . . . . . . . . . . . . . . . . . . . . . . Traps Extracted . | . . . . . . . . . . . . . . . . . . . . . . . . . . . . . . . . . Installed . | . . . . . . . . . . . . . . . . . . . . . . . . . . . . . . . . . Triggered 13 | . . . . . 1 . . . . 2 . . . . . . 1 . . . . 1 . 1 . 7 . . . . . . Most Traps Carried 1 | . . . . . . . . . . . . . . . . . . . . . . . . . 1 . . . . . . . Machines | -11 -10 -10 -10 -9 -8 -7 -7 -7 -7 -7 -7 -7 -6 -6 -6 -6 -5 -5 -5 -5 -5 -5 -4 -4 -4 -4 -3 -3 -3 -2 -2 -2 ---------- Run | Scr Mat Min Exi Min Mat Fac Was Fac Low Low Zio Dee Pro Fac Low Dat Pro Fac Ext Cet Arc Hub Fac Upp Upp War Pro Res Tes Res Qua Sec Machines Disabled 352 | . 17 10 . 4 24 4 . 42 . 1 . 5 . 39 . . . 37 3 1 1 32 55 . . . . 8 43 11 11 4 Max in Single Turn 17 | . 3 3 . 2 2 1 . 6 . 1 . 1 . 3 . . . 6 2 . . 17 8 . . . . 2 4 1 2 2 Garrison Access 9 | . . . . . 1 . . 1 . . . . . 1 . . . 1 . . . 1 2 . . . . . 1 1 . . Network Hub 4 | . . . . . . . . . . . . . . . . . . . . . . 4 . . . . . . . . . . Energy Cycler 1 | . . . . . . . . . . . . . . . . . . . 1 . . . . . . . . . . . . . Machines Sabotaged 2 | . 1 . . . 1 . . . . . . . . . . . . . . . . . . . . . . . . . . . Garrisons Compromised . | . . . . . . . . . . . . . . . . . . . . . . . . . . . . . . . . . Overloaded Fab Kills . | . . . . . . . . . . . . . . . . . . . . . . . . . . . . . . . . . Hacking | -11 -10 -10 -10 -9 -8 -7 -7 -7 -7 -7 -7 -7 -6 -6 -6 -6 -5 -5 -5 -5 -5 -5 -4 -4 -4 -4 -3 -3 -3 -2 -2 -2 --------- Run | Scr Mat Min Exi Min Mat Fac Was Fac Low Low Zio Dee Pro Fac Low Dat Pro Fac Ext Cet Arc Hub Fac Upp Upp War Pro Res Tes Res Qua Sec Machines Accessed 52 | . 5 . 2 . 5 . . 5 . 1 1 . . 2 . 4 . 3 4 1 1 8 3 . . 6 . . . 1 . . Terminals 37 | . 5 . . . 5 . . 5 . 1 . . . 2 . . . 3 4 1 . 7 3 . . . . . . 1 . . Fabricators . | . . . . . . . . . . . . . . . . . . . . . . . . . . . . . . . . . Repair Stations . | . . . . . . . . . . . . . . . . . . . . . . . . . . . . . . . . . Recycling Units . | . . . . . . . . . . . . . . . . . . . . . . . . . . . . . . . . . Scanalyzers . | . . . . . . . . . . . . . . . . . . . . . . . . . . . . . . . . . Garrison Access 1 | . . . . . . . . . . . . . . . . . . . . . . 1 . . . . . . . . . . Total Hacks 239 | . 17 . 2 . 10 . . 9 . 5 6 . . 6 . 26 . 11 22 4 25 37 32 . . 21 . . . 6 . . Successful 149 | . 7 . 2 . 5 . . 4 . 5 6 . . 2 . 26 . 6 5 1 25 20 13 . . 21 . . . 1 . . Failed 90 | . 10 . . . 5 . . 5 . . . . . 4 . . . 5 17 3 . 17 19 . . . . . . 5 . . Catastrophic 24 | . 3 . . . . . . 2 . . . . . 1 . . . 1 3 . . 7 5 . . . . . . 2 . . Database Lockouts . | . . . . . . . . . . . . . . . . . . . . . . . . . . . . . . . . . Manual 85 | . 11 . 1 . 4 . . 3 . . 1 . . 1 . . . 1 19 1 . 25 12 . . 1 . . . 5 . . Terminals 157 | . 17 . . . 10 . . 9 . 5 . . . 6 . . . 11 22 4 . 35 32 . . . . . . 6 . . Fabricators . | . . . . . . . . . . . . . . . . . . . . . . . . . . . . . . . . . Repair Stations . | . . . . . . . . . . . . . . . . . . . . . . . . . . . . . . . . . Recycling Units . | . . . . . . . . . . . . . . . . . . . . . . . . . . . . . . . . . Scanalyzers . | . . . . . . . . . . . . . . . . . . . . . . . . . . . . . . . . . Garrison Access 2 | . . . . . . . . . . . . . . . . . . . . . . 2 . . . . . . . . . . Terminal Hacks 136 | . 4 . 2 . 3 . . 4 . 5 6 . . 2 . 26 . 5 2 1 25 17 12 . . 21 . . . 1 . . Record 62 | . . . 1 . . . . . . 5 . . . . . 11 . . . . 25 . . . . 20 . . . . . . Part Schematic 15 | . . . . . . . . . . . 6 . . . . 9 . . . . . . . . . . . . . . . . Robot Schematic 4 | . . . . . . . . . . . . . . . . 3 . . . . . . 1 . . . . . . . . . Robot Analysis 2 | . . . . . . . . . . . . . . . . . . . . . . 2 . . . . . . . . . . Prototype ID Bank 5 | . . . . . 1 . . . . . . . . . . 3 . . . . . . 1 . . . . . . . . . Open Door 3 | . . . . . . . . . . . . . . . . . . 1 . 1 . . . . . 1 . . . . . . Level Access Points 3 | . . . . . . . . 1 . . . . . . . . . 1 . . . 1 . . . . . . . . . . Branch Access Points 4 | . 1 . . . . . . 1 . . . . . 1 . . . . . . . . 1 . . . . . . . . . Emergency Access Points 1 | . . . . . . . . . . . . . . . . . . . . . . 1 . . . . . . . . . . Machine Index 1 | . . . . . . . . . . . . . . . . . . . . . . . . . . . . . . 1 . . Terminal Index 1 | . . . . . . . . . . . . . . . . . . . . . . . 1 . . . . . . . . . Garrison Index 1 | . . . . . . . . . . . . . . . . . . . . . . 1 . . . . . . . . . . Alert Level 7 | . . . . . 2 . . . . . . . . . . . . . . . . 4 1 . . . . . . . . . Unreport Threat 13 | . 1 . . . . . . . . . . . . . . . . 3 1 . . 4 4 . . . . . . . . . Locate Traps 1 | . . . . . . . . . . . . . . . . . . . . . . 1 . . . . . . . . . . Recall Extermination 1 | . . . . . . . . . . . . . . . . . . . . . . . 1 . . . . . . . . . Hauler Manifests 1 | . 1 . . . . . . . . . . . . . . . . . . . . . . . . . . . . . . . Registered Prototypes 1 | . . . . . . . . . . . . . . . . . . . . . . . 1 . . . . . . . . . Zone Layout 9 | . 1 . . . . . . 2 . . . . . 1 . . . . 1 . . 3 1 . . . . . . . . . EX-Prototype ID Bank 1 | . . . 1 . . . . . . . . . . . . . . . . . . . . . . . . . . . . . Fabricator Hacks . | . . . . . . . . . . . . . . . . . . . . . . . . . . . . . . . . . Repair Station Hacks . | . . . . . . . . . . . . . . . . . . . . . . . . . . . . . . . . . Recycling Unit Hacks . | . . . . . . . . . . . . . . . . . . . . . . . . . . . . . . . . . Scanalyzer . | . . . . . . . . . . . . . . . . . . . . . . . . . . . . . . . . . Garrison Access Hacks . | . . . . . . . . . . . . . . . . . . . . . . . . . . . . . . . . . Unauthorized Hacks 13 | . 3 . . . 2 . . . . . . . . . . . . 1 3 . . 3 1 . . . . . . . . . Terminals 13 | . 3 . . . 2 . . . . . . . . . . . . 1 3 . . 3 1 . . . . . . . . . Assimilate 4 | . 1 . . . . . . . . . . . . . . . . . 1 . . 2 . . . . . . . . . . Botnet 5 | . . . . . . . . . . . . . . . . . . 1 2 . . 1 1 . . . . . . . . . Detonate 1 | . 1 . . . . . . . . . . . . . . . . . . . . . . . . . . . . . . . Sabotage 3 | . 1 . . . 2 . . . . . . . . . . . . . . . . . . . . . . . . . . . Fabricators . | . . . . . . . . . . . . . . . . . . . . . . . . . . . . . . . . . Repair Stations . | . . . . . . . . . . . . . . . . . . . . . . . . . . . . . . . . . Recycling Units . | . . . . . . . . . . . . . . . . . . . . . . . . . . . . . . . . . Scanalyzers . | . . . . . . . . . . . . . . . . . . . . . . . . . . . . . . . . . Garrison Access . | . . . . . . . . . . . . . . . . . . . . . . . . . . . . . . . . . Data Cores Recovered 1 | . . . . . . . . 1 . . . . . . . . . . . . . . . . . . . . . . . . Used . | . . . . . . . . . . . . . . . . . . . . . . . . . . . . . . . . . Hacking Detections 33 | . 4 . . . 3 . . 4 . 1 . . . 2 . . . 2 4 1 . 8 3 . . . . . . 1 . . Full Trace Events 12 | . 3 . . . 1 . . 1 . 1 . . . 1 . . . . 1 . . 2 1 . . . . . . 1 . . Feedback Events 1 | . . . . . . . . . . . . . . . . . . . . . . . . . . . . . . 1 . . Hackware Fried 1 | . . . . . . . . . . . . . . . . . . . . . . . . . . . . . . 1 . . Feedback Blocked . | . . . . . . . . . . . . . . . . . . . . . . . . . . . . . . . . . Robot Schematics Acquired 5 | . . . . . . . . . . . . . . . . 3 . . . . . . 1 . . . . . 1 . . . Robots Built . | . . . . . . . . . . . . . . . . . . . . . . . . . . . . . . . . . Authchips . | . . . . . . . . . . . . . . . . . . . . . . . . . . . . . . . . . Time . | . . . . . . . . . . . . . . . . . . . . . . . . . . . . . . . . . Total Robot Build Rating . | . . . . . . . . . . . . . . . . . . . . . . . . . . . . . . . . . Part Schematics Acquired 23 | . . . . . . . . . . . 6 . . . . 9 . . . . . . . . . . . . 8 . . . Parts Built . | . . . . . . . . . . . . . . . . . . . . . . . . . . . . . . . . . Authchips . | . . . . . . . . . . . . . . . . . . . . . . . . . . . . . . . . . Time . | . . . . . . . . . . . . . . . . . . . . . . . . . . . . . . . . . Total Part Build Rating . | . . . . . . . . . . . . . . . . . . . . . . . . . . . . . . . . . Parts Repaired . | . . . . . . . . . . . . . . . . . . . . . . . . . . . . . . . . . Time . | . . . . . . . . . . . . . . . . . . . . . . . . . . . . . . . . . Parts Recycled . | . . . . . . . . . . . . . . . . . . . . . . . . . . . . . . . . . Recycled Matter . | . . . . . . . . . . . . . . . . . . . . . . . . . . . . . . . . . Retrieved Matter . | . . . . . . . . . . . . . . . . . . . . . . . . . . . . . . . . . Retrieved Components . | . . . . . . . . . . . . . . . . . . . . . . . . . . . . . . . . . Parts Scanalyzed . | . . . . . . . . . . . . . . . . . . . . . . . . . . . . . . . . . Part Schematics Acquired . | . . . . . . . . . . . . . . . . . . . . . . . . . . . . . . . . . Parts Damaged . | . . . . . . . . . . . . . . . . . . . . . . . . . . . . . . . . . Bothacking | -11 -10 -10 -10 -9 -8 -7 -7 -7 -7 -7 -7 -7 -6 -6 -6 -6 -5 -5 -5 -5 -5 -5 -4 -4 -4 -4 -3 -3 -3 -2 -2 -2 ------------ Run | Scr Mat Min Exi Min Mat Fac Was Fac Low Low Zio Dee Pro Fac Low Dat Pro Fac Ext Cet Arc Hub Fac Upp Upp War Pro Res Tes Res Qua Sec Used RIF Installer . | . . . . . . . . . . . . . . . . . . . . . . . . . . . . . . . . . Robots Hacked . | . . . . . . . . . . . . . . . . . . . . . . . . . . . . . . . . . Non-combat . | . . . . . . . . . . . . . . . . . . . . . . . . . . . . . . . . . Combat . | . . . . . . . . . . . . . . . . . . . . . . . . . . . . . . . . . Robot Hacks Applied . | . . . . . . . . . . . . . . . . . . . . . . . . . . . . . . . . . Relay Couplers Released 18 | . . . . . 2 . . 2 . . . . . 1 . . . 2 . . . 3 2 . . . . . 1 5 . . Machine Destruction 14 | . . . . . 2 . . 2 . . . . . 1 . . . 2 . . . 3 2 . . . . . 1 1 . . Programmers 4 | . . . . . . . . . . . . . . . . . . . . . . . . . . . . . . 4 . . Fabnet Peak Effective % . | . . . . . . . . . . . . . . . . . . . . . . . . . . . . . . . . . Robots Rewired 24 | . . . . . . . . . . . . . . . . . . . 23 . . . . . . . . . 1 . . . Allies Hacked 3 | . . . . . . . . 1 . . . . . . . . . . . . . . . . . . . 2 . . . . Hacks Repelled . | . . . . . . . . . . . . . . . . . . . . . . . . . . . . . . . . . Allies | -11 -10 -10 -10 -9 -8 -7 -7 -7 -7 -7 -7 -7 -6 -6 -6 -6 -5 -5 -5 -5 -5 -5 -4 -4 -4 -4 -3 -3 -3 -2 -2 -2 -------- Run | Scr Mat Min Exi Min Mat Fac Was Fac Low Low Zio Dee Pro Fac Low Dat Pro Fac Ext Cet Arc Hub Fac Upp Upp War Pro Res Tes Res Qua Sec Total Allies 55 | . . 2 . . . . 19 . . . 2 . . . . . 1 . 24 2 . 1 . . . . . 3 1 . . . Largest Group 19 | . . 2 1 . . . 19 19 . . 2 2 . . . . 1 1 15 9 9 1 . . . . . 3 2 . . . Highest-Rated Group 539 | . . 45 31 . . . 465 465 . . 192 192 . . . . 96 96 539 530 530 10 . . . . . 138 146 . . . Highest-Rated Ally 159 | . . 31 31 . . . 35 35 . . 96 96 . . . . 96 96 159 159 159 10 . . . . . 46 146 . . . Total Orders 1 | . . . . . . . . . . . . . . . . . . . . . . . . . . . . . 1 . . . STAY 1 | . . . . . . . . . . . . . . . . . . . . . . . . . . . . . 1 . . . Ally Attacks 454 | . . . . . . . . 118 . . . 49 . . . . 11 19 124 55 52 . . . . . . 6 20 . . . Total Damage 12178 | . . . . . . . . 2132 . . . 2095 . . . . 445 816 2943 1296 1565 . . . . . . 27 859 . . . Kills 81 | . . . . . . . . 19 . . . 11 . . . . 2 5 23 9 8 . . . . . . . 4 . . . Allies Corrupted . | . . . . . . . . . . . . . . . . . . . . . . . . . . . . . . . . . Allies Melted 3 | . . . . . . . . . . . . . . . . . . . 1 . 1 . . . . . . . . 1 . . Intel | -11 -10 -10 -10 -9 -8 -7 -7 -7 -7 -7 -7 -7 -6 -6 -6 -6 -5 -5 -5 -5 -5 -5 -4 -4 -4 -4 -3 -3 -3 -2 -2 -2 ------- Run | Scr Mat Min Exi Min Mat Fac Was Fac Low Low Zio Dee Pro Fac Low Dat Pro Fac Ext Cet Arc Hub Fac Upp Upp War Pro Res Tes Res Qua Sec Robot Analysis Total 2 | . . . . . . . . . . . . . . . . . . . . . . 2 . . . . . . . . . . Derelict Logs Recovered . | . . . . . . . . . . . . . . . . . . . . . . . . . . . . . . . . . Drone Launches . | . . . . . . . . . . . . . . . . . . . . . . . . . . . . . . . . . Drone Recoveries . | . . . . . . . . . . . . . . . . . . . . . . . . . . . . . . . . . Exploration | -11 -10 -10 -10 -9 -8 -7 -7 -7 -7 -7 -7 -7 -6 -6 -6 -6 -5 -5 -5 -5 -5 -5 -4 -4 -4 -4 -3 -3 -3 -2 -2 -2 ------------- Run | Scr Mat Min Exi Min Mat Fac Was Fac Low Low Zio Dee Pro Fac Low Dat Pro Fac Ext Cet Arc Hub Fac Upp Upp War Pro Res Tes Res Qua Sec Turns Passed 23267 | 32 899 778 255 198 1001 98 552 1899 429 456 1393 1341 688 1268 516 119 351 754 1376 377 84 655 930 473 312 1252 644 801 1825 879 338 294 Spaces Moved 13656 | 21 450 509 213 76 448 54 291 857 336 316 955 683 385 657 293 92 215 519 757 157 63 391 540 266 312 1005 385 437 948 414 221 390 Core 1642 | . . . . . . . . . . . . 1 . . . . . . . . . . 8 . 213 896 32 . . . 159 333 Treads 6254 | . . . . 71 448 54 291 727 . . 598 682 385 383 . . . . . . . . . 266 99 48 338 437 948 414 57 8 Legs 5704 | 21 450 509 213 5 . . . 123 336 316 357 . . 274 293 92 215 519 757 157 63 391 532 . . 61 15 . . . 5 . Wheels . | . . . . . . . . . . . . . . . . . . . . . . . . . . . . . . . . . Hover 7 | . . . . . . . . 7 . . . . . . . . . . . . . . . . . . . . . . . . Flight 49 | . . . . . . . . . . . . . . . . . . . . . . . . . . . . . . . . 49 Fastest Speed 27 | 120 120 120 120 170 165 163 163 110 110 110 110 163 163 120 120 120 120 112 112 112 112 112 50 160 50 50 50 145 150 155 50 27 Average Speed 130 | 120 120 120 120 171 165 164 163 157 110 110 143 163 163 151 157 124 141 112 112 112 112 112 118 160 84 84 136 147 153 155 78 51 Slowest Speed 550 | 120 120 120 120 190 165 165 163 260 110 110 163 550 163 245 190 190 190 112 112 112 112 120 120 160 160 200 250 150 160 155 157 200 Overloaded Moves . | . . . . . . . . . . . . . . . . . . . . . . . . . . . . . . . . . Propulsion Burnouts . | . . . . . . . . . . . . . . . . . . . . . . . . . . . . . . . . . Robots Hopped 1 | . . . . . . . . . . . . . . . . . . . . . . . . . . . . . . . . 1 Cave-ins Triggered 1 | . . . . . . . . . . . . . . 1 . . . . . . . . . . . . . . . . . . Exploration Rate (%) 52 | 3 76 84 61 22 43 2 94 33 56 56 86 85 62 25 49 68 49 21 85 66 78 35 25 45 56 91 60 10 92 24 36 53 Regions Visited 32 Branch Regions 22 Pre-discovered Areas 4 | . . . 1 . . . . . . 1 1 . . . . 1 . . . . . . . . . . . . . . . . Known Exits Taken 12 | . 1 . . . . . . 1 . . . . 1 1 1 1 1 . . . . 1 1 1 . . . 1 . 1 . . Unknown Exits Taken 18 | 1 . 1 1 1 1 . . . 1 1 1 1 . . . . . 1 1 1 1 . . . 1 1 1 . 1 . 1 . Scrap Searched . | . . . . . . . . . . . . . . . . . . . . . . . . . . . . . . . . . Spaces Dug 390 | . 10 5 . . . . . 67 10 1 3 . 11 30 . . 15 1 . . . 6 27 . . 8 152 2 3 31 2 6 Terrain Destroyed 5530 | . 174 105 . 31 28 29 187 448 15 46 3 57 27 545 3 . 28 298 148 60 20 636 512 . . 207 338 58 501 746 195 85 Melee 29 | . 4 1 . . . . . 1 . . 3 . . . . . . . . . . 1 1 . . 8 . 2 1 . 1 6 Projectile 439 | . . . . 1 . . . 31 14 15 . 21 27 54 3 . . 52 73 15 . 54 39 . . 3 1 17 11 7 1 . AOE 5061 | . 170 104 . 30 28 29 187 416 . 31 . 36 . 491 . . 28 246 75 45 20 581 472 . . 196 337 39 489 739 193 79 Terrain Rammed . | . . . . . . . . . . . . . . . . . . . . . . . . . . . . . . . . . Walls Destroyed . | . . . . . . . . . . . . . . . . . . . . . . . . . . . . . . . . . Machines Disabled . | . . . . . . . . . . . . . . . . . . . . . . . . . . . . . . . . . Actions | -11 -10 -10 -10 -9 -8 -7 -7 -7 -7 -7 -7 -7 -6 -6 -6 -6 -5 -5 -5 -5 -5 -5 -4 -4 -4 -4 -3 -3 -3 -2 -2 -2 --------- Run | Scr Mat Min Exi Min Mat Fac Was Fac Low Low Zio Dee Pro Fac Low Dat Pro Fac Ext Cet Arc Hub Fac Upp Upp War Pro Res Tes Res Qua Sec Total 17181 | 23 636 631 212 104 580 59 324 1191 375 377 977 828 426 830 326 97 244 612 1188 335 70 508 680 301 349 1354 477 532 1208 552 319 456 Wait 1382 | . 49 86 . . 33 . 1 99 27 28 8 71 9 30 7 . 12 1 101 164 . 61 11 12 10 290 67 46 102 30 3 24 Move 13623 | 20 449 508 212 75 447 54 290 856 335 315 954 682 384 656 292 91 214 518 756 156 62 390 539 265 311 1004 384 436 947 413 220 388 Hop 1 | . . . . . . . . . . . . . . . . . . . . . . . . . . . . . . . . 1 Pick Up 35 | . . . . . . . 3 2 . . . . 5 8 2 . . 2 3 . . 1 4 . 1 . . 1 2 . 1 . Fast Attach 47 | . 1 . . . . . . 18 1 . 4 6 2 2 1 3 . 1 . . . 1 2 . . . . . 4 1 . . Attach 73 | . . 1 . 2 1 . . 7 . 1 . 3 1 10 2 . 1 1 2 . . . 3 4 5 4 5 4 3 2 4 7 Detach 73 | . . . . . . . 1 9 1 1 . 5 1 7 . . . 6 2 . . 1 5 . 5 6 1 2 3 3 5 9 Swap 144 | . 8 1 . . 7 1 1 31 1 5 1 6 2 5 2 . 7 7 2 3 2 3 18 . . 2 1 4 10 11 3 . Drop 117 | . . . . . . . 4 14 1 2 7 6 9 13 2 3 . 4 8 . . 1 5 1 5 1 . 1 15 3 11 1 Fire 1125 | . 69 23 . 27 80 3 24 143 8 25 . 39 12 95 11 . 7 70 62 12 3 35 70 . 3 35 19 31 74 80 49 16 Melee 263 | 3 60 12 . . 12 1 . 4 . . 3 8 1 . 7 . 3 . . . . 14 22 19 8 12 . 6 33 7 18 10 Ram 2 | . . . . . . . . . . . . . . . . . . . . . . . 1 . 1 . . . . . . . Kick 12 | . . . . . . . . . 1 . . . . 3 . . . 2 3 . 2 1 . . . . . . . . . . Crush 13 | . . . . . . . . 8 . . . . . 1 . . . . . . . . . . . . . 1 1 2 . . Escape Stasis 8 | . . . . . . . . . . . . . . . . . . . . . . . . . . . . . 3 . 5 . Rewire 263 | . . . . . . . . . . . . 2 . . . . . . 249 . 1 . . . . . . . 11 . . . Trap . | . . . . . . . . . . . . . . . . . . . . . . . . . . . . . . . . . Miscellaneous . | . . . . . . . . . . . . . . . . . . . . . . . . . . . . . . . . . Route ------- -11/Scrapyard -10/Materials (discovered 3 exits: [*Mat x2] / *Min) -10/Mines (discovered 3 exits: [*Mat x2] / *Exi) -10/Exiles (discovered 2 exits: [*Min x2]) -9/Mines -8/Materials -7/Factory -7/Waste -7/Factory (discovered 6 exits: *Fac x4 / *Low x2) -7/Lower Caves -7/Lower Caves (discovered 2 exits: *Fac / *Zio) -7/Zion (discovered 2 exits: [*Dee] / [*Pro]) -7/Deep Caves -6/Proximity Caves -6/Factory (discovered 4 exits: *Fac x2 / *Low x2) -6/Lower Caves -6/Data Miner -5/Proximity Caves -5/Factory (discovered 5 exits: *Fac x4 / *Ext) -5/Extension (discovered 2 exits: *Fac / *Cet) -5/Cetus (discovered 2 exits: *Fac / *Arc) -5/Archives (discovered 2 exits: *Hub x2) -5/Hub_04(d) (discovered 4 exits: *Fac x4) -4/Factory (discovered 2 exits: *Upp x2) -4/Upper Caves -4/Upper Caves (discovered 2 exits: [*Res] / *War) -4/Warlord -3/Proximity Caves -3/Research (discovered 2 exits: *Arm / *Tes) -3/Testing -2/Research (discovered 3 exits: *Acc x2 / *Qua) -2/Quarantine (discovered 2 exits: *Acc / [*Sec]) -2/Section 7 History --------- Turn | Location | Event 5 | -11/Scrapyard | Discovered new exit (range 15) 33 | -11/Scrapyard | Entered Materials 67 | -10/Materials | Identified exit to Mines 307 | -10/Materials | Build established: Mutant 587 | -10/Materials | Discovered new exit (range 9) 827 | -10/Materials | Discovered new exit (range 18) 932 | -10/Materials | Entered Mines 933 | -10/Mines | Assembled infested the area 945 | -10/Mines | Met a Derelict bent on vengeance 979 | -10/Mines | Destroyed 17 combat bots 1111 | -10/Mines | Discovered new exit (range 12) 1613 | -10/Mines | Discovered new exit (range 10) 1696 | -10/Mines | Deemed a non-threat by the Exiles lab entrance 1696 | -10/Mines | Discovered new exit (range 5) 1710 | -10/Mines | Entered Exiles 1710 | -10/Exiles | Accompanied by 1 ally 1730 | -10/Exiles | Discovered new exit (range 15) 1740 | -10/Exiles | Led the pair of lost Derelicts to a safe place 1743 | -10/Exiles | Met 8R-AWN 1760 | -10/Exiles | Met EX-HEX 1793 | -10/Exiles | Met EX-BIN 1806 | -10/Exiles | Aligned with FarCom system 1808 | -10/Exiles | Given EX-Vault access code 1838 | -10/Exiles | Opened EX-Vault 1865 | -10/Exiles | Warned to stay clear of 0b10 Research branches 1901 | -10/Exiles | Met EX-DEC 1910 | -10/Exiles | Learned location of Zion (-7) 1954 | -10/Exiles | Discovered new exit (range 10) 1965 | -10/Exiles | Entered Mines 1971 | -9/Mines | Core integrity fell below 50% 2004 | -9/Mines | Lost 3 parts (1p2w) 2104 | -9/Mines | Discovered new exit (range 8) 2163 | -9/Mines | Entered Materials 2163 | -8/Materials | Evolved 4 slots: Propulsion x1, Utility x1, Weapon x2 2744 | -8/Materials | Discovered new exit (range 10) 3164 | -8/Materials | Entered Factory 3164 | -7/Factory | Evolved 2 slots: Utility x2 3262 | -7/Factory | Sucked down chute 3262 | -7/Factory | Entered Waste 3263 | -7/Waste | Found Rocket Array 3273 | -7/Waste | Spotted C-40 Crusher 3277 | -7/Waste | Destroyed C-40 Crusher 3297 | -7/Waste | Spotted C-40 Crusher 3310 | -7/Waste | Spotted C-40 Crusher 3310 | -7/Waste | Destroyed C-40 Crusher 3319 | -7/Waste | Spotted C-40 Crusher 3326 | -7/Waste | Destroyed C-40 Crusher 3332 | -7/Waste | Destroyed C-40 Crusher 3339 | -7/Waste | Spotted C-40 Crusher 3350 | -7/Waste | Destroyed C-40 Crusher 3354 | -7/Waste | Spotted C-40 Crusher 3373 | -7/Waste | Destroyed C-40 Crusher 3632 | -7/Waste | Build established: Hacker-Skirmisher 3660 | -7/Waste | Warlord forces began an assault 3784 | -7/Waste | Discovered new exit (range 16) 3814 | -7/Waste | Entered Factory 3814 | -7/Factory | Accompanied by 19 allies 4214 | -7/Factory | First assault squad dispatched 4332 | -7/Factory | Lost 7 parts (1p1n2u3w) 4388 | -7/Factory | Identified exit to Factory 4496 | -7/Factory | Lost 4 parts (1n2u1w) 4754 | -7/Factory | Identified exit to Lower Caves 4760 | -7/Factory | Build established: Gunner 4851 | -7/Factory | Destroyed 9 combat bots 5276 | -7/Factory | Cargo convoy interrupted 5322 | -7/Factory | Destroyed 10 combat bots 5497 | -7/Factory | Garrison activated, responded to threat 5564 | -7/Factory | Destroyed 10 combat bots 5564 | -7/Factory | High security lockdown imminent 5587 | -7/Factory | Destroyed 9 combat bots 5644 | -7/Factory | High security lockdown engaged 5713 | -7/Factory | Entered Lower Caves 6109 | -7/Lower Caves | Discovered new exit (range 10) 6142 | -7/Lower Caves | Entered another Lower Caves area 6166 | -7/Lower Caves | Attracted the attention of an 0b10 checkpoint 6173 | -7/Lower Caves | Discovered exit to Factory (range 14) 6506 | -7/Lower Caves | Learned location of Armory (-3) 6506 | -7/Lower Caves | Learned Factory emergency access door positions 6518 | -7/Lower Caves | Destroyed 7 combat bots 6582 | -7/Lower Caves | Discovered new exit (range 8) 6598 | -7/Lower Caves | Entered Zion 6620 | -7/Zion | Given the Hacking Drone Bay 6686 | -7/Zion | System corruption cleaned by Quarantine Array 6768 | -7/Zion | Discovered new exit (range 13) 6839 | -7/Zion | Given A8's code to call for help 7058 | -7/Zion | Received a hallucinogenic algorithm 7822 | -7/Zion | Rebuked by Imprinter 7957 | -7/Zion | Enhanced Grunt warped into view, answering call for help 7959 | -7/Zion | Enhanced Grunt warped into view, answering call for help 7976 | -7/Zion | Discovered new exit (range 5) 7978 | -7/Zion | Saw the warning signs outside the Deep Caves entrance 7991 | -7/Zion | Entered Deep Caves 7991 | -7/Deep Caves | Accompanied by 2 allies 8305 | -7/Deep Caves | Attacked by Z-Imprinter 8311 | -7/Deep Caves | Destroyed Z-Imprinter 8398 | -7/Deep Caves | Z-Facility disabled 8472 | -7/Deep Caves | Core integrity fell below 50% 8818 | -7/Deep Caves | Discovered new exit (range 11) 8974 | -7/Deep Caves | Spotted as-79343 9007 | -7/Deep Caves | Destroyed as-79343 9060 | -7/Deep Caves | Triggered Deep Caves wall 9060 | -7/Deep Caves | Spotted AS-17858 9060 | -7/Deep Caves | Spotted AS-74861 9070 | -7/Deep Caves | Destroyed AS-74861 9075 | -7/Deep Caves | Destroyed AS-17858 9094 | -7/Deep Caves | Exposed GOLEM chamber 9099 | -7/Deep Caves | Destroyed 38 combat bots 9099 | -7/Deep Caves | Found GOLEM Unit 9182 | -7/Deep Caves | Found GOLEM Unit 9332 | -7/Deep Caves | Entered Proximity Caves 9638 | -6/Proximity Caves | Build established: Skirmisher 9682 | -6/Proximity Caves | Found Exp. Hacking Suite 9705 | -6/Proximity Caves | Spotted B-75 Beast 9717 | -6/Proximity Caves | Core integrity fell below 20% 9717 | -6/Proximity Caves | Destroyed B-75 Beast 10009 | -6/Proximity Caves | Discovered exit to Factory (range 7) 10020 | -6/Proximity Caves | Entered Factory 10020 | -6/Factory | Evolved 2 slots: Power x1, Utility x1 10164 | -6/Factory | Crushed by falling debris 10370 | -6/Factory | First assault squad dispatched 10555 | -6/Factory | Discovered new exit (range 15) 10577 | -6/Factory | Identified exit to Factory 10712 | -6/Factory | Identified exit to Lower Caves 10769 | -6/Factory | Build established: Gunner 10896 | -6/Factory | Destroyed 7 combat bots 10927 | -6/Factory | Discovered exit to Factory (range 11) 11146 | -6/Factory | Build established: Mutant 11211 | -6/Factory | High security lockdown imminent 11288 | -6/Factory | Entered Lower Caves 11290 | -6/Lower Caves | Attracted the attention of an 0b10 checkpoint 11490 | -6/Lower Caves | Spotted B-75 Beast 11506 | -6/Lower Caves | Destroyed B-75 Beast 11789 | -6/Lower Caves | Build established: Gunner 11792 | -6/Lower Caves | A Derelict revealed a hidden shortcut to meet someone special 11802 | -6/Lower Caves | Identified exit to Data Miner 11804 | -6/Lower Caves | Entered Data Miner 11806 | -6/Data Miner | Discovered new exit (range 7) 11829 | -6/Data Miner | Met Data Miner 11853 | -6/Data Miner | Learned location of Section 7 (-2) 11853 | -6/Data Miner | Acquired the access code to Warlord's prototype stash 11870 | -6/Data Miner | Received God Mode back door access code from Data Miner 11921 | -6/Data Miner | Identified exit to Proximity Caves 11923 | -6/Data Miner | Entered Proximity Caves 11950 | -5/Proximity Caves | Escorted by Enhanced Grunt 11953 | -5/Proximity Caves | Attracted the attention of an 0b10 checkpoint 12209 | -5/Proximity Caves | Build established: Skirmisher 12270 | -5/Proximity Caves | Discovered exit to Factory (range 5) 12274 | -5/Proximity Caves | Entered Factory 12274 | -5/Factory | Accompanied by 1 ally 12274 | -5/Factory | Evolved 2 slots: Propulsion x1, Utility x1 12314 | -5/Factory | Identified exit to Factory 12410 | -5/Factory | Incoming assault squad redirected 12574 | -5/Factory | First assault squad dispatched 12893 | -5/Factory | Incoming assault squad redirected 12902 | -5/Factory | Incoming assault squad redirected 13025 | -5/Factory | Discovered new exit (range 5) 13028 | -5/Factory | Entered Extension 13031 | -5/Extension | Found Scatter Rocket Array 13164 | -5/Extension | Build established: Gunner 13268 | -5/Extension | Incoming investigation squad redirected 13328 | -5/Extension | First assault squad dispatched 13351 | -5/Extension | Incoming assault squad redirected 13459 | -5/Extension | Rescued A7 13515 | -5/Extension | Build established: Commander-Gunner 13813 | -5/Extension | Spotted B-75 Beast 13820 | -5/Extension | Destroyed B-75 Beast 13829 | -5/Extension | Build established: Gunner 13832 | -5/Extension | Spotted B-75 Beast 13841 | -5/Extension | Destroyed B-75 Beast 14003 | -5/Extension | Disrupted transfer network 14086 | -5/Extension | System corruption reached 10% 14242 | -5/Extension | Energy Cycler disabled 14380 | -5/Extension | Discovered exit to Factory (range 10) 14381 | -5/Extension | Discovered new exit (range 6) 14404 | -5/Extension | Entered Cetus 14404 | -5/Cetus | Accompanied by 8 allies (A7) 14409 | -5/Cetus | Acquired a Cetus Manufacturing Module code from A7 14420 | -5/Cetus | Spotted Cetus Guard 14420 | -5/Cetus | Spotted Cetus Guard 14422 | -5/Cetus | Spotted Cetus Guard 14426 | -5/Cetus | Destroyed Cetus Guard 14426 | -5/Cetus | Spotted Cetus Guard 14427 | -5/Cetus | Allies destroyed Cetus Guard 14429 | -5/Cetus | Allies destroyed Cetus Guard 14435 | -5/Cetus | Allies destroyed Cetus Guard 14481 | -5/Cetus | Escorted A7 to Cetus Mainframe 14494 | -5/Cetus | Started Cetus Manufacturing Module 14507 | -5/Cetus | Discovered new exit (range 15) 14519 | -5/Cetus | Manufactured an Enhanced Grunt 14538 | -5/Cetus | Spotted Cetus Guard 14538 | -5/Cetus | Spotted Cetus Guard 14541 | -5/Cetus | Spotted Cetus Guard 14544 | -5/Cetus | Manufactured an Enhanced Grunt 14545 | -5/Cetus | Allies destroyed Cetus Guard 14546 | -5/Cetus | Allies destroyed Cetus Guard 14549 | -5/Cetus | Cetus Manufacturing Module disabled 14549 | -5/Cetus | Allies destroyed Cetus Guard 14549 | -5/Cetus | Spotted Cetus Guard 14553 | -5/Cetus | Destroyed Cetus Guard 14559 | -5/Cetus | Discovered exit to Factory (range 15) 14561 | -5/Cetus | Build established: Commander-Gunner 14564 | -5/Cetus | Met Revision 17 14781 | -5/Cetus | Entered Archives 14781 | -5/Archives | Accompanied by 9 allies (A7) 14786 | -5/Archives | Received a hacking code to weaken MAIN.C 14798 | -5/Archives | Met Zhirov 14803 | -5/Archives | Unable to access archive contents 14804 | -5/Archives | Reinforcements dispatched to Archives 14817 | -5/Archives | Unable to access archive contents 14819 | -5/Archives | Discovered new exit (range 15) 14828 | -5/Archives | Read partially decrypted archive contents 14828 | -5/Archives | Read partially decrypted archive contents 14830 | -5/Archives | Discovered new exit (range 15) 14847 | -5/Archives | Unable to access archive contents 14849 | -5/Archives | Reinforcements dispatched to Archives 14851 | -5/Archives | Zhirov warped through subspace 14865 | -5/Archives | Entered Hub_04(d) 15140 | -5/Hub_04(d) | Incoming assault squad redirected 15147 | -5/Hub_04(d) | Incoming investigation squad redirected 15209 | -5/Hub_04(d) | Spotted B-75 Beast 15230 | -5/Hub_04(d) | Destroyed B-75 Beast 15471 | -5/Hub_04(d) | Network Hub disabled 15471 | -5/Hub_04(d) | Network Hub disabled 15502 | -5/Hub_04(d) | Network Hub disabled 15502 | -5/Hub_04(d) | Network Hub disabled 15506 | -5/Hub_04(d) | Spotted Lightning 15507 | -5/Hub_04(d) | Spotted Lightning 15507 | -5/Hub_04(d) | Spotted Lightning 15520 | -5/Hub_04(d) | Entered Factory 15520 | -4/Factory | Evolved 2 slots: Propulsion x1, Utility x1 15652 | -4/Factory | Incoming assault squad redirected 15856 | -4/Factory | Destroyed 9 combat bots 15977 | -4/Factory | Lost 3 parts (1n2u) 16020 | -4/Factory | First assault squad dispatched 16040 | -4/Factory | Identified exit to Upper Caves 16047 | -4/Factory | Incoming assault squad redirected 16166 | -4/Factory | High security lockdown imminent 16220 | -4/Factory | Destroyed 10 combat bots 16246 | -4/Factory | High security lockdown engaged 16282 | -4/Factory | Spotted B-86 Titan 16329 | -4/Factory | Destroyed 10 combat bots 16433 | -4/Factory | Lost 9 parts (2p1n4u2w) 16450 | -4/Factory | Entered Upper Caves 16486 | -4/Upper Caves | Lost 3 parts (3n) 16743 | -4/Upper Caves | Build established: Assassin 16888 | -4/Upper Caves | Discovered new exit (range 12) 16899 | -4/Upper Caves | Attracted the attention of an 0b10 checkpoint 16921 | -4/Upper Caves | Identified exit to Upper Caves 16923 | -4/Upper Caves | Entered another Upper Caves area 16955 | -4/Upper Caves | Discovered new exit (range 15) 17070 | -4/Upper Caves | Attracted the attention of an 0b10 outpost 17090 | -4/Upper Caves | System corruption reached 10% 17093 | -4/Upper Caves | Core integrity fell below 50% 17124 | -4/Upper Caves | Lost 6 parts (1n5u) 17165 | -4/Upper Caves | Spotted B-86 Titan 17204 | -4/Upper Caves | Build established: Mutant 17232 | -4/Upper Caves | Discovered new exit (range 7) 17235 | -4/Upper Caves | Entered Warlord 17253 | -4/Warlord | System corruption cleaned by Quarantine Array 17691 | -4/Warlord | Learned Factory fabricator intel 17691 | -4/Warlord | Learned Factory recycling unit intel 17691 | -4/Warlord | Learned Research scanalyzer intel 17691 | -4/Warlord | Learned 4 Armory zone layouts 17691 | -4/Warlord | Learned 4 Research zone layouts 17691 | -4/Warlord | Learned 4 Testing zone layouts 17714 | -4/Warlord | Warlord's base attacked by MAIN.C 17796 | -4/Warlord | Met Warlord 17801 | -4/Warlord | Opened Warlord's prototype stash 17971 | -4/Warlord | Spotted B-90 Cyclops 18064 | -4/Warlord | Warlord forces counterattacked 18119 | -4/Warlord | Spotted Striker 18389 | -4/Warlord | Warlord base infiltrated, sounded retreat 18451 | -4/Warlord | Spotted Striker 18472 | -4/Warlord | Discovered new exit (range 14) 18487 | -4/Warlord | Entered Proximity Caves 18507 | -3/Proximity Caves | Attracted the attention of an 0b10 checkpoint 18521 | -3/Proximity Caves | Core integrity fell below 20% 19118 | -3/Proximity Caves | Discovered new exit (range 7) 19131 | -3/Proximity Caves | Entered Research 19131 | -3/Research | Evolved 2 slots: Propulsion x1, Utility x1 19133 | -3/Research | Loaded intel: 5 scanalyzer locations 19199 | -3/Research | Discovered new exit (range 4) 19234 | -3/Research | Discovered new exit (range 5) 19291 | -3/Research | Identified exit to Armory 19317 | -3/Research | Identified exit to Testing 19722 | -3/Research | Found Exp. EM Disruption Field 19766 | -3/Research | Allied Derelicts emerged from ambush trap array 19881 | -3/Research | First assault squad dispatched 19932 | -3/Research | Entered Testing 19932 | -3/Testing | Accompanied by 2 allies 19933 | -3/Testing | Maximum security lockdown engaged 19994 | -3/Testing | Destroyed 8 combat bots 20107 | -3/Testing | Destroyed 17 combat bots 20131 | -3/Testing | Destroyed 10 combat bots 20179 | -3/Testing | Spotted Investigator 20179 | -3/Testing | Scanned by Researcher 20180 | -3/Testing | Spotted Executioner 20181 | -3/Testing | Destroyed Executioner 20182 | -3/Testing | Destroyed Investigator 20210 | -3/Testing | Spotted PY-IP9JK0UDLY 20237 | -3/Testing | Destroyed 21 combat bots 20248 | -3/Testing | Rewired PY-IP9JK0UDLY 20330 | -3/Testing | Spotted Investigator 20337 | -3/Testing | Destroyed Investigator 20371 | -3/Testing | Destroyed 33 combat bots 20503 | -3/Testing | Spotted Investigator 20504 | -3/Testing | Spotted Striker 20506 | -3/Testing | Spotted Executioner 20507 | -3/Testing | Destroyed Investigator 20508 | -3/Testing | Destroyed Executioner 20512 | -3/Testing | Sterilization system engaged 20512 | -3/Testing | Non-combat units ordered to evacuate 20530 | -3/Testing | Destroyed Striker 20554 | -3/Testing | Destroyed 43 combat bots 20612 | -3/Testing | Combat units ordered to evacuate 20658 | -3/Testing | Spotted Alpha 7 20665 | -3/Testing | Destroyed Alpha 7 20812 | -3/Testing | Ambient heat levels rising (+10) 20924 | -3/Testing | Found Integrated Dissipator 20924 | -3/Testing | Installed Integrated Dissipator, increased core heat dissipation (+20) 20962 | -3/Testing | Ambient heat levels rising (+10) 21012 | -3/Testing | Discovered new exit (range 16) 21112 | -3/Testing | Ambient heat levels rising (+10) 21215 | -3/Testing | Build established: Skirmisher 21262 | -3/Testing | Ambient heat levels rising (+10) 21412 | -3/Testing | Ambient heat levels rising (+10) 21562 | -3/Testing | Ambient heat levels rising (+10) 21712 | -3/Testing | Ambient heat levels rising (+10) 21757 | -3/Testing | Entered Research 21757 | -2/Research | Warlord forces began assault on 0b10 21757 | -2/Research | Evolved 2 slots: Power x1, Utility x1 21758 | -2/Research | Identified exit to Quarantine 21785 | -2/Research | Exp. Hacking Suite fried by hacking feedback 21801 | -2/Research | Discovered new exit (range 20) 21835 | -2/Research | Found Singularity Reactor 21867 | -2/Research | Research machine network offline 21892 | -2/Research | Identified exit to Access 22095 | -2/Research | High security lockdown imminent 22172 | -2/Research | Borebot progress halted 22175 | -2/Research | High security lockdown engaged 22308 | -2/Research | Discovered exit to Access (range 15) 22331 | -2/Research | Borebot progress halted 22345 | -2/Research | Destroyed 10 combat bots 22357 | -2/Research | Spotted Investigator 22380 | -2/Research | Borebot progress halted 22406 | -2/Research | Spotted B-90 Cyclops 22507 | -2/Research | Warlord destroyed during the assault 22546 | -2/Research | Destroyed 9 combat bots 22619 | -2/Research | Destroyed 7 combat bots 22636 | -2/Research | Entered Quarantine 22637 | -2/Quarantine | Maximum security lockdown engaged 22711 | -2/Quarantine | Cryocooling Duct disabled 22726 | -2/Quarantine | Ambient heat levels rising (+20) 22738 | -2/Quarantine | Spotted Alpha 7 22754 | -2/Quarantine | Garrison activated, responded to threat 22812 | -2/Quarantine | Destroyed 28 combat bots 22819 | -2/Quarantine | Destroyed Alpha 7 22835 | -2/Quarantine | Lost 10 parts (3n4u3w) 22842 | -2/Quarantine | Discovered exit to Access (range 22) 22845 | -2/Quarantine | Spotted Investigator 22848 | -2/Quarantine | Destroyed Investigator 22870 | -2/Quarantine | System corruption reached 10% 22875 | -2/Quarantine | Destroyed 22 combat bots 22906 | -2/Quarantine | Found Enh. Force Lance 22918 | -2/Quarantine | Core integrity fell below 50% 22922 | -2/Quarantine | Lost 7 parts (1p2n3u1w) 22931 | -2/Quarantine | Spotted Fortress 22972 | -2/Quarantine | Discovered new exit (range 6) 22974 | -2/Quarantine | Entered Section 7 22975 | -2/Section 7 | Maximum security lockdown engaged 22990 | -2/Section 7 | Found Exp. Weapon Cycler 23002 | -2/Section 7 | Scanned by Researcher 23116 | -2/Section 7 | Spotted S7 Guard 23123 | -2/Section 7 | Spotted Alpha 7 23123 | -2/Section 7 | Spotted Alpha 7 23128 | -2/Section 7 | Spotted B-99 Colossus 23137 | -2/Section 7 | Spotted Executioner 23137 | -2/Section 7 | Spotted Executioner 23161 | -2/Section 7 | Spotted Executioner 23161 | -2/Section 7 | Spotted Executioner 23179 | -2/Section 7 | Build established: Mutant 23193 | -2/Section 7 | Core integrity fell below 20% 23253 | -2/Section 7 | Destroyed 9 combat bots 23268 | -2/Section 7 | Destroyed by G-73 Enforcer with Phase Gun Last Messages --------------- 23246_ M-36 Artificer fits Backup Power VII on H-88 Terminator. 23251_ System corrupted: Energy discharge (-6). 23251_ Dropped Exp. Biometal Medium Treads. 23251_ B-74 Champion destroyed. 23264_ System corrupted: Slammed into wall. 23264_ Spectral Analyzer destroyed. 23264_ System corrupted by crushing effect (+4). 23264_ Slug penetrates Reinforced Barrier. 23268_ C-30 ARC bursts open, deploying its payload. 23268_ G-73 Enforcer unfolds itself. 23268_ E-15 Imp unfolds itself. 23268_ C-30 ARC bursts open, deploying its payload. 23268_ G-73 Enforcer unfolds itself. 23268_ B-74 Champion unfolds itself. 23268_ G-73 Enforcer unfolds itself. 23268_ E-15 Imp unfolds itself. 23268_ C-30 ARC bursts open, deploying its payload. 23268_ G-73 Enforcer unfolds itself. 23268_ L-61 Swordsman unfolds itself. 23268_ M-36 Artificer unfolds itself. Map ----- +----------------------------------------------------+ | ???" "?" """" " " " | | ???" """?" " " " " | | ???" " " " " " """ | | ???" " """""""""" | | ???" """ " " " " """ | | ???" "" T " " " " | | ??#" """" " " " "" | | ??# "??" "" | | ??#" """" "" """ "" | | ??#"" """ " | | ??#""" " " "" """"""""" " | | ??#""" """" " ""???????""%" | | ###""" "?? """ "" "?"""""""" " | | # # """""" "?" | | / """"" | | / "" | | / """""%% " | | / "???" % | | # # "?" | | ###""" """"" | | ??#""" | | ??#""" | | ??#"" egm | | ??#" gg """" "" " """"" | | ??# """""""""""" gggeggb ###""""""""""" """"" | | ??# """""""""""" g@lg #?#""""""""""""""""" | | ??##################### ###++#?################## | | ??????????????????????# ??# #??????????????????? | | ??????????????????????##???# #??????????????????? | | ???????????????????????????# #??????????????????? | | ???????????????????????????# #??################# | | ???????????????????????????# i#??#"""""" """""# | | ???????????????????????????# #??#"""""" """""# | | ???????????????????????????# #??#"""""" "# | | ????????????????############ #### " """""# | | ????????????????# """""# | | ????????????????# % g """""# | | ????????????????# ###############" """""# | | ????????????##### #?????????????#"" "# | | ?????????#### # #####?????????#" " "# | | ?????????#" """"" """"#?????????#"""""""" """ "# | | ?????????#" """#?????????######### # #### | | ?????????#" """#?????????????????# ###??? | | ?????????#""""" """#?????????????????# #????? | | ?????????#""""" """#?????????????????# #????? | | ?????????#""""" """#?????????????????# #????? | | ?????????#""""" """#?###############?# #????? | | ?????????#" """"#?#""""""" #?# #????? | | ?????????#""""" """#?#"" """" #?# #????? | | ?????????#""""" """"#?#"" """" #?# #????? | +----------------------------------------------------+ Best States ------------- Heat Dissipation 159 Coolant Potential 100 Energy Generation 75 Energy Capacity 1100 Matter Stores 300 Matter Capacity 300 Sight Range 24 Robot Scan Range 18 Terrain Scan Density 10 Jamming Range 22 Power Amplification 30 Additional Mass Support 25 Armor Coverage 450 Resistance: TH 20 Resistance: EM 75 Weapon Cycling 30 Melee Speed Boost 40 Phase Shifting 15 Evasion (%) 64 Targeting Accuracy 8 Target Analysis 8 Core Analysis 6 Recoil Reduction 6 Matter Filtering 65 Kinecelleration 30 Salvage Targeting 4 Offensive Hacking 22 Defensive Hacking 14 Item Schematics ----------------- Beamcaster | -7/Zion | Free Riot Gun | -7/Zion | Free Battle Rifle | -7/Zion | Free Barrage Gun | -7/Zion | Free Flamer | -7/Zion | Free Plasma Flamer | -7/Zion | Free Combat Drone Bay | -6/Data Miner | Free Lgt. Regenerative Plating | -6/Data Miner | Free Enh. Flexi-carbon Leg | -6/Data Miner | Free Prc. Matter Filter | -6/Data Miner | Free Hvy. Gatling Laser | -6/Data Miner | Free Imp. Heavy Treads | -6/Data Miner | Free Adv. Cryofiber Web | -6/Data Miner | Free Force Lance | -6/Data Miner | Free HERF Cannon | -6/Data Miner | Free Lgt. Neutrino Core | -3/Testing | Archive Neutron Missile Launcher | -3/Testing | Archive Centrium Light Armor Plating | -3/Testing | Archive Nanosword | -3/Testing | Archive Cld. Plasma Rifle | -3/Testing | Archive Exp. System Shield | -3/Testing | Archive Hvy. Antimatter Reactor | -3/Testing | Archive Exp. Power Amplifier | -3/Testing | Archive Robot Schematics ------------------ B-60 Warrior | -6/Data Miner | Free R-10 Processor | -6/Data Miner | Free G-50 Soldier | -6/Data Miner | Free L-61 Swordsman | -4/Factory | Hacked T-07 Excavator | -3/Testing | Archive Fabricated ------------ Nothing Alien Tech Used ----------------- Integrated Dissipator Achievements -------------- 404 Challenges ------------ None Cogshop Purchases (244) ------------------------- Mining Laser (Loot Box) Flail (Loot Box) Imp. Aluminum Leg (699) Lgt. Armor Plating (599) Ion Engine (599) Grenade Launcher (818) Med. Armor Plating (820) Imp. Aluminum Leg (730) Imp. Ion Engine (608) Grenade Launcher (Loot Box) Hvy. EM Pulse Gun (573) Maul (461) Hammer (395) Hvy. Ion Engine (Loot Box) Surge Thruster (Loot Box) Hover Unit (Loot Box) Shotgun (Loot Box) Arm. Treads (Loot Box) Autogun (Loot Box) Imp. EM Pulse Cannon (Loot Box) Lgt. Ion Engine (Loot Box) Gauss Rifle (Loot Box) Hrd. Medium Armor Plating (939) Adv. Targeting Computer (296) Spk. Treads (905) Enh. Autogun (995) Enh. Autogun (995) Imp. Cooling System (679) Rocket Array (2832) Mak. System Shield (1446) Mak. Hacking Suite (1446) Imp. Medium Treads (1637) Matter Filter (827) Gyrokinetic Inverter (Loot Box) Point Defense Array (Loot Box) Imp. Heavy Treads (Loot Box) Adv. Plasma Cannon (Loot Box) Antimatter Cannon (Loot Box) Microactuators (Loot Box) Prc. Assault Rifle (Loot Box) Prc. Rocket Launcher (Loot Box) Cold Fusion Reactor (924) Matter Filter (638) Weapon Cycler (638) Matter Filter (638) Hvy. Machine Gun (923) Hvy. Machine Gun (923) Hvy. Machine Gun (923) Mak. Salvage Targeting Computer (593) Weapon Cycler (938) Weapon Cycler (938) Imp. Medium Armor Plating (611) Imp. VSS Leg (947) Flexi-carbon Leg (947) Seismic Detector (737) Prc. Rocket Launcher (1530) Imp. System Shield (1606) Plasma Cutter (682) Antimatter Cannon (413) Antimatter Cannon (413) Arm. Treads (439) Spk. Medium Treads (549) Imp. Medium Treads (549) Mak. Salvage Targeting Computer (712) Thermal Shield (862) Adv. Signal Interpreter (814) Adv. Sensor Array (779) Imp. Shield Generator (Loot Box) Mak. Leg (Loot Box) Exp. Hacking Suite (Loot Box) Imp. Coolant Injector (974) Tri-rail Accelerator (399) Tri-rail Accelerator (399) Mak. System Shield (1174) Cold Fusion Reactor (1078) Imp. Weapon Cycler (1100) Force Field (1000) Cold Fusion Reactor (1071) Imp. Signal Interpreter (543) Matter Filter (1078) Enh. Armored Leg (726) Enh. Armored Leg (726) Enh. Armored Leg (726) Imp. EM Pulse Cannon (Loot Box) Field Propulsion Array (Loot Box) Adv. Power Amplifier (Loot Box) Cld. Antimatter Reactor (Loot Box) Imp. Medium Armor Plating (Loot Box) Imp. Launcher Guidance Computer (Loot Box) Cld. Gravmag System (Loot Box) Cld. Plasma Rifle (Loot Box) Railgun (Loot Box) Armor Integrity Analyzer (Loot Box) Kinecellerator (Loot Box) Variable Charge Gun (Loot Box) Centrium Wheel (Loot Box) Enh. Armored Leg (Loot Box) Nova Cannon (Loot Box) Adv. Sensor Array (1163) Adv. VSS Leg (1077) Adv. Target Analyzer (1063) Core Analyzer (797) Adv. System Shield (1790) Lgt. Antimatter Cannon (1015) Imp. Force Field (1344) Graphene Brace (1344) Tiamat Missile Launcher (3132) Lgt. Antimatter Cannon (1287) Matter Filter (1226) Adv. Coolant Injector (1635) Adv. Myomer Leg (1210) Scatter Rocket Array (2982) Adv. System Shield (2071) Lrn. Proton Cannon (Loot Box) Lgt. Antimatter Cannon (Loot Box) Adv. Heavy Siege Treads (Loot Box) Antimissile System (Loot Box) Hvy. Antimatter Reactor (1092) HERF Cannon (Loot Box) Hvy. Machine Gun (Loot Box) Hvy. Gauss Cannon (991) Hvy. Antimatter Reactor (1207) Exp. Cooling System (2437) Imp. Force Field (2437) Matter Filter (2387) Imp. System Restoration Module (2957) Neutron Missile Launcher (3745) Neutron Missile Launcher (3745) Adv. Transmission Jammer (2635) Mak. Hacking Suite (1706) Lgt. Antimatter Cannon (1221) Myomer Leg (1773) Matter Filter (2131) Lyr. Light Armor Plating (1215) Enh. Flexi-carbon Leg (2105) Lgt. Quantum Reactor (Loot Box) Arm. Medium Treads (Loot Box) Gyrokinetic Inverter (Loot Box) Quantum Reactor (Loot Box) Quantum Reactor (Loot Box) Enh. Nova Cannon (Loot Box) Machine Analyzer (643) Matter Filter (2461) Mak. Hacking Suite (1774) Adv. Force Field (3568) Centrium Heavy Treads (1872) Powered Hammer (647) Powered Hammer (647) Powered Hammer (647) Microactuators (2104) Microactuators (2104) Adv. Signal Interpreter (885) Lrn. Sensor Array (2805) Lgt. Antimatter Cannon (662) Lgt. Antimatter Cannon (662) Lgt. Antimatter Cannon (662) Lgt. Antimatter Cannon (662) Centrium Heavy Treads (1784) Mak. Leg (1433) Enh. Coil Gun (843) Exp. Reaction Control System (Loot Box) Lgt. Quantum Reactor (Loot Box) Centrium Leg (Loot Box) Biometal Heavy Treads (Loot Box) Quantum Reactor (Loot Box) Exp. Reaction Control System (Loot Box) Imp. Remote Force Field (Loot Box) Biometal Heavy Treads (Loot Box) Lgt. Quantum Reactor (Loot Box) Centrium Leg (Loot Box) Exp. Actuator Array (Loot Box) Adv. Heavy Siege Treads (Loot Box) Adv. Signal Interpreter (798) Exp. EM Disruption Field (Loot Box) Quantum Reactor (Loot Box) Enh. Quantum Rifle (Loot Box) Enh. Nova Cannon (Loot Box) Enh. Quantum Rifle (Loot Box) Enh. Nova Cannon (Loot Box) Spectral Analyzer (Loot Box) Lgt. Quantum Reactor (Loot Box) Matter Filter (1602) Launcher Loader (1781) Prc. Matter Filter (2427) Neutron Missile Launcher (3931) Neutron Missile Launcher (3931) Adv. Heavy Siege Treads (Loot Box) Imp. Force Field (Loot Box) Coolant Network (3027) Quantum Reactor (2349) Exp. Biometal Medium Treads (Loot Box) Adv. Heavy Siege Treads (Loot Box) Centrium Leg (Loot Box) Imp. Q-thruster (Loot Box) Com. Linear Accelerator (Loot Box) Lgt. Quantum Reactor (Loot Box) Biometal Heavy Treads (Loot Box) Nova Cannon (Loot Box) Enh. Quantum Rifle (Loot Box) Lgt. Quantum Reactor (Loot Box) Quantum Reactor (Loot Box) Integrated Dissipator (Loot Box) Singularity Reactor (5913) Adv. Force Field (2822) Exp. Hacking Suite (3745) Imp. Hacking Suite (1560) Adv. Signal Interpreter (687) Lrn. Tractor Beam (1409) Exp. Biometal Medium Treads (Loot Box) Adv. Quantum Shading Machine (Loot Box) Lgt. Quantum Reactor (Loot Box) Adv. Component Analysis Suite (Loot Box) Quantum Capacitor (2419) Lrn. Tractor Beam (1612) Adv. Force Field (2620) Matter Filter (1814) Biometal Heavy Treads (1736) Enh. Force Lance (Loot Box) Centrium Leg (Loot Box) Hyp. Railgun (Loot Box) Quantum Reactor (Loot Box) Adv. Phase Shifter (Loot Box) Arm. Heavy Treads (1847) Cmb. Linear Gravjet (Loot Box) Biometal Heavy Treads (Loot Box) Graviton Cannon (Loot Box) Enh. Nova Cannon (Loot Box) Imp. Q-thruster (Loot Box) Cmb. Linear Gravjet (Loot Box) Enh. Quantum Rifle (Loot Box) Exp. Transmission Jammer (Loot Box) Enh. Quantum Rifle (Loot Box) Centrium Leg (Loot Box) Arm. Heavy Treads (Loot Box) Lgt. Quantum Reactor (Loot Box) Exp. Gyrokinetic Inverter (Loot Box) Enh. Nova Cannon (Loot Box) Cld. Q-thruster (Loot Box) Exp. Weapon Cycler (Loot Box) Arm. Heavy Treads (1547) Cld. Q-thruster (Loot Box) Adv. Phase Shifter (Loot Box) Enh. Nova Cannon (Loot Box) Imp. Diametric Drive (Loot Box) Game ------ Seed IntegratedDirtyVibroblade Manual? 0 Play Time 04:49:47 Cumulative 284.6 hours Start 2022.05.21 @ 12:54:37 End 2022.05.21 @ 21:01:29 Sessions 3 Manual Loads 0 Difficulty Rogue Special Mode AFD2019/Pay2Buy Game No. 102 Rogue 87 Adventurer 15 Explorer 0 Win Type - Total 15 Types 4/0/6/1/2/0/2/0/0 Lore% 89 Gallery% 88 Achievement% 78 Wizard Run 0 Options --------- ASCII 0 Keyboard 0 Movement Numpad Keybinds 0 Fullscreen 1 Font 18/SmallcapsGlow Map View 76x50 Tactical HUD 1 Map Filters NONE Filters NONE Steam 1 RUN: bc6b893f-df35-4cb1-84c3-e16e0e40dc89